{"text_format":"1","workbook":"xlsx","n_sheets":7,"sheets":["異動届出書","退職（記載例）","一括徴収（記載例）","転勤（記載例）","　","異動届出書（リスト印刷用）","入力リスト"],"not_rendered":{"charts":0,"images":0,"macros":1,"external_links":0,"defined_names":5,"comments":0,"pivot_tables":0},"unopened":[],"bounds":{"document_bytes":16777216,"sheet_cells":100000,"rows_first":2000,"rows_last":500,"rows_between":2000,"halvings":0,"cell_chars":16384,"cell_head_chars":4096},"cells_cut":0,"cells_raw":0,"read":"whole","date_system":"1900"}

{"sheet":"異動届出書","index":0,"n_rows":93,"n_cols":159,"rows_kept":93,"cut":false,"hidden":false,"merged":[[87,158,93,166],[84,2,85,30],[85,140,86,148],[85,149,86,157],[85,158,86,166],[86,11,87,107],[87,5,89,8],[89,11,90,107],[92,11,93,107],[6,33,22,35],[6,36,22,41],[12,121,22,126],[23,2,50,4],[23,97,31,109],[29,117,47,120],[29,121,47,138],[39,51,47,66],[54,2,70,6],[57,77,70,79],[74,2,82,3],[85,108,93,111],[85,112,93,139],[86,2,93,3],[87,140,93,148],[87,149,93,157],[72,2,73,30],[74,11,77,78],[74,79,77,98],[74,99,77,126],[74,129,76,165],[75,5,77,8],[77,129,79,134],[77,135,79,165],[78,11,82,78],[78,80,82,85],[78,89,82,94],[78,101,82,121],[80,129,82,165],[81,86,82,88],[81,95,82,97],[81,122,82,124],[63,7,64,22],[63,23,64,76],[63,80,66,86],[63,87,66,117],[63,118,65,134],[63,135,65,166],[65,7,70,22],[65,23,70,76],[66,118,70,134],[66,146,70,166],[67,80,70,86],[67,87,70,106],[67,107,70,117],[67,136,69,140],[54,121,56,142],[54,143,56,156],[54,157,56,161],[57,7,62,22],[57,23,58,25],[57,26,58,37],[57,80,60,86],[57,87,60,117],[57,121,59,126],[57,127,59,163],[59,23,62,76],[60,121,62,163],[61,80,62,86],[61,87,62,117],[54,91,56,93],[54,94,56,96],[54,97,56,99],[54,100,56,102],[54,103,56,105],[54,106,56,108],[54,109,56,111],[54,112,56,114],[54,115,56,117],[52,2,53,38],[54,7,56,22],[54,23,56,54],[54,55,56,64],[54,65,56,78],[54,79,56,81],[54,82,56,84],[54,85,56,87],[54,88,56,90],[39,75,43,80],[39,83,43,89],[39,90,43,95],[39,98,43,105],[39,106,43,108],[39,147,40,165],[41,5,45,14],[41,15,45,50],[42,147,44,150],[42,151,44,165],[45,67,50,78],[45,82,50,93],[45,98,49,105],[45,106,49,108],[45,151,47,165],[46,5,50,14],[46,15,50,50],[48,64,50,66],[48,79,50,81],[48,94,50,96],[48,117,50,138],[48,147,49,165],[33,90,37,95],[33,98,37,105],[33,106,37,108],[33,147,34,165],[35,5,37,14],[35,15,37,17],[35,18,37,20],[35,21,37,23],[35,24,37,26],[35,27,37,29],[35,30,37,32],[35,33,37,35],[35,36,37,38],[35,39,37,41],[35,42,37,44],[35,45,37,47],[35,48,37,50],[36,110,41,116],[36,140,41,146],[36,147,38,150],[36,151,38,165],[38,5,40,14],[38,15,40,50],[39,68,43,74],[32,21,34,27],[32,28,34,30],[32,31,34,37],[32,38,34,40],[32,41,34,47],[32,48,34,50],[33,68,37,74],[33,75,37,80],[33,83,37,89],[19,97,22,99],[19,100,22,120],[20,127,22,134],[20,135,22,154],[20,155,22,166],[23,5,25,14],[23,15,25,50],[23,51,26,66],[23,67,26,81],[23,82,26,96],[23,110,28,139],[23,140,25,166],[26,5,31,14],[26,15,31,50],[26,140,28,166],[27,51,31,66],[27,67,31,81],[27,82,31,96],[30,147,32,150],[30,151,32,165],[31,111,34,115],[31,141,34,145],[32,5,34,14],[32,15,34,20],[19,70,22,72],[19,73,22,75],[19,76,22,78],[19,79,22,81],[19,82,22,84],[19,85,22,87],[19,88,22,90],[19,91,22,93],[19,94,22,96],[10,2,12,8],[12,42,13,60],[12,61,13,120],[12,127,14,134],[12,135,14,166],[13,3,16,22],[14,42,18,60],[14,61,18,120],[15,127,16,134],[15,135,16,166],[17,127,19,134],[17,135,19,166],[18,2,20,6],[18,7,20,10],[18,11,20,13],[18,14,20,17],[18,18,20,20],[18,21,20,24],[18,25,20,27],[18,28,20,32],[19,42,22,60],[19,61,22,63],[19,64,22,66],[19,67,22,69],[1,32,5,53],[1,54,5,99],[2,111,5,120],[2,121,5,166],[6,42,11,60],[6,61,7,63],[6,64,7,75],[6,121,11,134],[6,135,11,166],[8,61,11,120]]}
[]
[null,null,null,null,null,null,null,null,null,null,null,null,null,null,null,null,null,null,null,null,null,null,null,null,null,null,null,null,null,null,null,null,"給与支払報告\n特別徴収",null,null,null,null,null,null,null,null,null,null,null,null,null,null,null,null,null,null,null,null,null,"に係る給与所得者異動届出書"]
[null,null,null,null,null,null,null,null,null,null,null,null,null,null,null,null,null,null,null,null,null,null,null,null,null,null,null,null,null,null,null,null,null,null,null,null,null,null,null,null,null,null,null,null,null,null,null,null,null,null,null,null,null,null,null,null,null,null,null,null,null,null,null,null,null,null,null,null,null,null,null,null,null,null,null,null,null,null,null,null,null,null,null,null,null,null,null,null,null,null,null,null,null,null,null,null,null,null,null,null,null,null,null,null,null,null,null,null,null,null,null,"年 度",null,null,null,null,null,null,null,null,null,"１．　現年度　　　　２．　新年度　　　　３．　両年度"]
[]
[]
[]
[null,null,null,null,null,null,null,null,null,null,null,null,null,null,null,null,null,null,null,null,null,null,null,null,null,null,null,null,null,null,null,null,null,"給与支払者",null,null,"義務者\n特別徴収",null,null,null,null,null,"所　在　地",null,null,null,null,null,null,null,null,null,null,null,null,null,null,null,null,null,null,"〒",null,null,null,null,null,null,null,null,null,null,null,null,null,null,null,null,null,null,null,null,null,null,null,null,null,null,null,null,null,null,null,null,null,null,null,null,null,null,null,null,null,null,null,null,null,null,null,null,null,null,null,null,null,null,null,null,null,null,null,"特別徴収義務者\n指　定　番　号"]
[]
[]
[]
[null,null,"（宛先）"]
[]
[null,null,null,null,null,null,null,null,null,null,null,null,null,null,null,null,null,null,null,null,null,null,null,null,null,null,null,null,null,null,null,null,null,null,null,null,null,null,null,null,null,null,"フリガナ",null,null,null,null,null,null,null,null,null,null,null,null,null,null,null,null,null,null,null,null,null,null,null,null,null,null,null,null,null,null,null,null,null,null,null,null,null,null,null,null,null,null,null,null,null,null,null,null,null,null,null,null,null,null,null,null,null,null,null,null,null,null,null,null,null,null,null,null,null,null,null,null,null,null,null,null,null,null,"連絡先\n担当者",null,null,null,null,null,"所 属"]
[null,null,null,"佐 伯 市 長"]
[null,null,null,null,null,null,null,null,null,null,null,null,null,null,null,null,null,null,null,null,null,null,null,null,null,null,null,null,null,null,null,null,null,null,null,null,null,null,null,null,null,null,"氏名又は名称"]
[null,null,null,null,null,null,null,null,null,null,null,null,null,null,null,null,null,null,null,null,null,null,null,null,null,null,null,null,null,null,null,null,null,null,null,null,null,null,null,null,null,null,null,null,null,null,null,null,null,null,null,null,null,null,null,null,null,null,null,null,null,null,null,null,null,null,null,null,null,null,null,null,null,null,null,null,null,null,null,null,null,null,null,null,null,null,null,null,null,null,null,null,null,null,null,null,null,null,null,null,null,null,null,null,null,null,null,null,null,null,null,null,null,null,null,null,null,null,null,null,null,null,null,null,null,null,null,"フリガナ"]
[]
[null,null,null,null,null,null,null,null,null,null,null,null,null,null,null,null,null,null,null,null,null,null,null,null,null,null,null,null,null,null,null,null,null,null,null,null,null,null,null,null,null,null,null,null,null,null,null,null,null,null,null,null,null,null,null,null,null,null,null,null,null,null,null,null,null,null,null,null,null,null,null,null,null,null,null,null,null,null,null,null,null,null,null,null,null,null,null,null,null,null,null,null,null,null,null,null,null,null,null,null,null,null,null,null,null,null,null,null,null,null,null,null,null,null,null,null,null,null,null,null,null,null,null,null,null,null,null,"氏 名"]
[null,null,"令和",null,null,null,null,null,null,null,null,"年",null,null,null,null,null,null,"月",null,null,null,null,null,null,"日",null,null,"提出"]
[null,null,null,null,null,null,null,null,null,null,null,null,null,null,null,null,null,null,null,null,null,null,null,null,null,null,null,null,null,null,null,null,null,null,null,null,null,null,null,null,null,null,"個人番号\n又は法人番号",null,null,null,null,null,null,null,null,null,null,null,null,null,null,null,null,null,null,null,null,null,null,null,null,null,null,null,null,null,null,null,null,null,null,null,null,null,null,null,null,null,null,null,null,null,null,null,null,null,null,null,null,null,null,null,null,null," ←個人番号の記載に当たっては、\n左端を空欄とし右詰めで記載"]
[null,null,null,null,null,null,null,null,null,null,null,null,null,null,null,null,null,null,null,null,null,null,null,null,null,null,null,null,null,null,null,null,null,null,null,null,null,null,null,null,null,null,null,null,null,null,null,null,null,null,null,null,null,null,null,null,null,null,null,null,null,null,null,null,null,null,null,null,null,null,null,null,null,null,null,null,null,null,null,null,null,null,null,null,null,null,null,null,null,null,null,null,null,null,null,null,null,null,null,null,null,null,null,null,null,null,null,null,null,null,null,null,null,null,null,null,null,null,null,null,null,null,null,null,null,null,null,"電 話",null,null,null,null,null,null,null,null,null,null,null,null,null,null,null,null,null,null,null,null,null,null,null,null,null,null,null,"内線(　　　　　　)"]
[]
[]
[null,null,"給　与　所　得　者",null,null,"フリガナ",null,null,null,null,null,null,null,null,null,null,null,null,null,null,null,null,null,null,null,null,null,null,null,null,null,null,null,null,null,null,null,null,null,null,null,null,null,null,null,null,null,null,null,null,null,"（ア）",null,null,null,null,null,null,null,null,null,null,null,null,null,null,null,"（イ）",null,null,null,null,null,null,null,null,null,null,null,null,null,null,"（ウ）",null,null,null,null,null,null,null,null,null,null,null,null,null,null,"異  　動\n年 月 日",null,null,null,null,null,null,null,null,null,null,null,null,"異　動　の　事　由",null,null,null,null,null,null,null,null,null,null,null,null,null,null,null,null,null,null,null,null,null,null,null,null,null,null,null,null,null,"異動後の未徴収"]
[]
[]
[null,null,null,null,null,"氏　名",null,null,null,null,null,null,null,null,null,null,null,null,null,null,null,null,null,null,null,null,null,null,null,null,null,null,null,null,null,null,null,null,null,null,null,null,null,null,null,null,null,null,null,null,null,null,null,null,null,null,null,null,null,null,null,null,null,null,null,null,null,null,null,null,null,null,null,null,null,null,null,null,null,null,null,null,null,null,null,null,null,null,null,null,null,null,null,null,null,null,null,null,null,null,null,null,null,null,null,null,null,null,null,null,null,null,null,null,null,null,null,null,null,null,null,null,null,null,null,null,null,null,null,null,null,null,null,null,null,null,null,null,null,null,"税額の徴収方法"]
[null,null,null,null,null,null,null,null,null,null,null,null,null,null,null,null,null,null,null,null,null,null,null,null,null,null,null,null,null,null,null,null,null,null,null,null,null,null,null,null,null,null,null,null,null,null,null,null,null,null,null,"特別徴収税額\n（年税額）",null,null,null,null,null,null,null,null,null,null,null,null,null,null,null,"徴収済額",null,null,null,null,null,null,null,null,null,null,null,null,null,null,"未徴収税額\n（ア）－（イ）"]
[]
[null,null,null,null,null,null,null,null,null,null,null,null,null,null,null,null,null,null,null,null,null,null,null,null,null,null,null,null,null,null,null,null,null,null,null,null,null,null,null,null,null,null,null,null,null,null,null,null,null,null,null,null,null,null,null,null,null,null,null,null,null,null,null,null,null,null,null,null,null,null,null,null,null,null,null,null,null,null,null,null,null,null,null,null,null,null,null,null,null,null,null,null,null,null,null,null,null,null,null,null,null,null,null,null,null,null,null,null,null,null,null,null,null,null,null,null,null,"１．\n２．\n３．\n４．\n５．\n６．\n７．\n８．",null,null,null,"退職\n転勤\n休職・長欠\n死亡\n支払少額・不定期\n合併・解散\n事業所変更\nその他"]
[null,null,null,null,null,null,null,null,null,null,null,null,null,null,null,null,null,null,null,null,null,null,null,null,null,null,null,null,null,null,null,null,null,null,null,null,null,null,null,null,null,null,null,null,null,null,null,null,null,null,null,null,null,null,null,null,null,null,null,null,null,null,null,null,null,null,null,null,null,null,null,null,null,null,null,null,null,null,null,null,null,null,null,null,null,null,null,null,null,null,null,null,null,null,null,null,null,null,null,null,null,null,null,null,null,null,null,null,null,null,null,null,null,null,null,null,null,null,null,null,null,null,null,null,null,null,null,null,null,null,null,null,null,null,null,null,null,null,null,null,null,null,null,null,null,null,null,"１．",null,null,null,"特別徴収継続"]
[]
[null,null,null,null,null,"生年月日",null,null,null,null,null,null,null,null,null,null,null,null,null,null,null,null,null,null,null,null,null,null,"年",null,null,null,null,null,null,null,null,null,"月",null,null,null,null,null,null,null,null,null,"日"]
[null,null,null,null,null,null,null,null,null,null,null,null,null,null,null,null,null,null,null,null,null,null,null,null,null,null,null,null,null,null,null,null,null,null,null,null,null,null,null,null,null,null,null,null,null,null,null,null,null,null,null,null,null,null,null,null,null,null,null,null,null,null,null,null,null,null,null,null,null,null,null,null,null,null,null,"月から",null,null,null,null,null,null,null,null,null,null,null,null,null,null,"月から",null,null,null,null,null,null,null,null,null,null,null,null,null,null,null,"年",null,null,null,null,null,null,null,null,null,null,null,null,null,null,null,null,null,null,null,null,null,null,null,null,null,null,null,null,null,null,null,null,null,null,null,null,null,null,null,null,"→①欄に記入してください"]
[]
[null,null,null,null,null,"個人番号"]
[null,null,null,null,null,null,null,null,null,null,null,null,null,null,null,null,null,null,null,null,null,null,null,null,null,null,null,null,null,null,null,null,null,null,null,null,null,null,null,null,null,null,null,null,null,null,null,null,null,null,null,null,null,null,null,null,null,null,null,null,null,null,null,null,null,null,null,null,null,null,null,null,null,null,null,null,null,null,null,null,null,null,null,null,null,null,null,null,null,null,null,null,null,null,null,null,null,null,null,null,null,null,null,null,null,null,null,null,null,null,"右から\n番号を\n記入",null,null,null,null,null,null,null,null,null,null,null,null,null,null,null,null,null,null,null,null,null,null,null,null,null,null,null,null,null,"右から\n番号を\n記入",null,null,null,null,null,null,"２．",null,null,null,"一括徴収"]
[]
[null,null,null,null,null,"受給者番号",null,null,null,null,null,null,null,null,null,"　"]
[null,null,null,null,null,null,null,null,null,null,null,null,null,null,null,null,null,null,null,null,null,null,null,null,null,null,null,null,null,null,null,null,null,null,null,null,null,null,null,null,null,null,null,null,null,null,null,null,null,null,null,null,null,null,null,null,null,null,null,null,null,null,null,null,null,null,null,null,null,null,null,null,null,null,null,"月まで",null,null,null,null,null,null,null,null,null,null,null,null,null,null,"月まで",null,null,null,null,null,null,null,null,null,null,null,null,null,null,null,"月",null,null,null,null,null,null,null,null,null,null,null,null,null,null,null,null,null,null,null,null,null,null,null,null,null,null,null,null,null,null,null,null,null,null,null,null,null,null,null,null,"→②欄に記入してください"]
[]
[null,null,null,null,null,"１月１日\n現在の住所"]
[null,null,null,null,null,null,null,null,null,null,null,null,null,null,null,null,null,null,null,null,null,null,null,null,null,null,null,null,null,null,null,null,null,null,null,null,null,null,null,null,null,null,null,null,null,null,null,null,null,null,null,null,null,null,null,null,null,null,null,null,null,null,null,null,null,null,null,null,null,null,null,null,null,null,null,null,null,null,null,null,null,null,null,null,null,null,null,null,null,null,null,null,null,null,null,null,null,null,null,null,null,null,null,null,null,null,null,null,null,null,null,null,null,null,null,null,null,null,null,null,null,null,null,null,null,null,null,null,null,null,null,null,null,null,null,null,null,null,null,null,null,null,null,null,null,null,null,"３．",null,null,null,"普通徴収"]
[]
[]
[null,null,null,null,null,null,null,null,null,null,null,null,null,null,null,null,null,null,null,null,null,null,null,null,null,null,null,null,null,null,null,null,null,null,null,null,null,null,null,null,null,null,null,null,null,null,null,null,null,null,null,null,null,null,null,null,null,null,null,null,null,null,null,null,null,null,null,null,null,null,null,null,null,null,null,null,null,null,null,null,null,null,null,null,null,null,null,null,null,null,null,null,null,null,null,null,null,null,null,null,null,null,null,null,null,null,"日",null,null,null,null,null,null,null,null,null,null,null,null,null,null,null,null,null,null,null,null,null,null,null,null,null,null,null,null,null,null,null,null,null,null,null,null,null,null,null,null,null,null,null,null,"（本人納付）"]
[null,null,null,null,null,"異動後の\n住 所"]
[]
[null,null,null,null,null,null,null,null,null,null,null,null,null,null,null,null,null,null,null,null,null,null,null,null,null,null,null,null,null,null,null,null,null,null,null,null,null,null,null,null,null,null,null,null,null,null,null,null,null,null,null,null,null,null,null,null,null,null,null,null,null,null,null,null,"円",null,null,null,null,null,null,null,null,null,null,null,null,null,null,"円",null,null,null,null,null,null,null,null,null,null,null,null,null,null,"円",null,null,null,null,null,null,null,null,null,null,null,null,null,null,null,null,null,null,null,null,null,null,null,null,null,null,null,null,null,null,null,null,null,null,null,null,null,null,null,null,null,null,null,null,null,null,null,null,null,null,null,null,"→③欄に記入してください"]
[]
[]
[]
[null,null,"①特別徴収継続の場合"]
[]
[null,null,"（特別徴収義務者）\n新しい勤務先",null,null,null,null,"特別徴収義務者\n指　定　番　号",null,null,null,null,null,null,null,null,null,null,null,null,null,null,null,null,null,null,null,null,null,null,null,null,null,null,null,null,null,null,null,null,null,null,null,null,null,null,null,null,null,null,null,null,null,null,null,"新規",null,null,null,null,null,null,null,null,null,"個人番号\n又は法人番号",null,null,null,null,null,null,null,null,null,null,null,null,null,null,null,null,null,null,null,null,null,null,null,null,null,null,null,null,null,null,null,null,null,null,null,null,null,null,null,null,null,null,null,null,null,null,null,null,null,null,null,null,null,null,null,"新しい勤務先へは、月割額  ",null,null,null,null,null,null,null,null,null,null,null,null,null,null,null,null,null,null,null,null,null,null,null,null,null,null,null,null,null,null,null,null,null,null,null,"円を"]
[]
[]
[null,null,null,null,null,null,null,"所　在　地",null,null,null,null,null,null,null,null,null,null,null,null,null,null,null,"〒",null,null,null,null,null,null,null,null,null,null,null,null,null,null,null,null,null,null,null,null,null,null,null,null,null,null,null,null,null,null,null,null,null,null,null,null,null,null,null,null,null,null,null,null,null,null,null,null,null,null,null,null,null,"担当者連絡先",null,null,"所属",null,null,null,null,null,null,null,null,null,null,null,null,null,null,null,null,null,null,null,null,null,null,null,null,null,null,null,null,null,null,null,null,null,null,null,null,null,null,null,null,null,null,null,null,null,null,"月分（翌月10日納入期限分）から"]
[]
[]
[null,null,null,null,null,null,null,null,null,null,null,null,null,null,null,null,null,null,null,null,null,null,null,null,null,null,null,null,null,null,null,null,null,null,null,null,null,null,null,null,null,null,null,null,null,null,null,null,null,null,null,null,null,null,null,null,null,null,null,null,null,null,null,null,null,null,null,null,null,null,null,null,null,null,null,null,null,null,null,null,null,null,null,null,null,null,null,null,null,null,null,null,null,null,null,null,null,null,null,null,null,null,null,null,null,null,null,null,null,null,null,null,null,null,null,null,null,null,null,null,null,"徴収し、納入するよう連絡済みです。"]
[null,null,null,null,null,null,null,null,null,null,null,null,null,null,null,null,null,null,null,null,null,null,null,null,null,null,null,null,null,null,null,null,null,null,null,null,null,null,null,null,null,null,null,null,null,null,null,null,null,null,null,null,null,null,null,null,null,null,null,null,null,null,null,null,null,null,null,null,null,null,null,null,null,null,null,null,null,null,null,null,"フリガナ"]
[]
[null,null,null,null,null,null,null,"フリガナ",null,null,null,null,null,null,null,null,null,null,null,null,null,null,null,null,null,null,null,null,null,null,null,null,null,null,null,null,null,null,null,null,null,null,null,null,null,null,null,null,null,null,null,null,null,null,null,null,null,null,null,null,null,null,null,null,null,null,null,null,null,null,null,null,null,null,null,null,null,null,null,null,"氏名",null,null,null,null,null,null,null,null,null,null,null,null,null,null,null,null,null,null,null,null,null,null,null,null,null,null,null,null,null,null,null,null,null,null,null,null,null,"受給者番号"]
[]
[null,null,null,null,null,null,null,"氏名又は名称"]
[null,null,null,null,null,null,null,null,null,null,null,null,null,null,null,null,null,null,null,null,null,null,null,null,null,null,null,null,null,null,null,null,null,null,null,null,null,null,null,null,null,null,null,null,null,null,null,null,null,null,null,null,null,null,null,null,null,null,null,null,null,null,null,null,null,null,null,null,null,null,null,null,null,null,null,null,null,null,null,null,null,null,null,null,null,null,null,null,null,null,null,null,null,null,null,null,null,null,null,null,null,null,null,null,null,null,null,null,null,null,null,null,null,null,null,null,null,null,"納入書の要否\n（新規の場合のみ記載）",null,null,null,null,null,null,null,null,null,null,null,null,null,null,null,null,null,null,null,null,null,null,null,null,null,null,null,"１．必要　　２．不要 "]
[null,null,null,null,null,null,null,null,null,null,null,null,null,null,null,null,null,null,null,null,null,null,null,null,null,null,null,null,null,null,null,null,null,null,null,null,null,null,null,null,null,null,null,null,null,null,null,null,null,null,null,null,null,null,null,null,null,null,null,null,null,null,null,null,null,null,null,null,null,null,null,null,null,null,null,null,null,null,null,null,"電話",null,null,null,null,null,null,null,null,null,null,null,null,null,null,null,null,null,null,null,null,null,null,null,null,null,null,"内線(　　　　　)"]
[]
[]
[]
[]
[null,null,"②一括徴収の場合"]
[]
[null,null,"理　由",null,null,null,null,null,null,null,null,"１．異動が令和　　　年12月31日までで、一括徴収の申出があったため",null,null,null,null,null,null,null,null,null,null,null,null,null,null,null,null,null,null,null,null,null,null,null,null,null,null,null,null,null,null,null,null,null,null,null,null,null,null,null,null,null,null,null,null,null,null,null,null,null,null,null,null,null,null,null,null,null,null,null,null,null,null,null,null,null,null,null,"徴収予定月日",null,null,null,null,null,null,null,null,null,null,null,null,null,null,null,null,null,null,null,"徴収予定額\n（上記（ウ）と同額）",null,null,null,null,null,null,null,null,null,null,null,null,null,null,null,null,null,null,null,null,null,null,null,null,null,null,null,null,null,"左記の一括徴収した税額は、"]
[]
[]
[null,null,null,null,null,null,null,null,null,null,null,null,null,null,null,null,null,null,null,null,null,null,null,null,null,null,null,null,null,null,null,null,null,null,null,null,null,null,null,null,null,null,null,null,null,null,null,null,null,null,null,null,null,null,null,null,null,null,null,null,null,null,null,null,null,null,null,null,null,null,null,null,null,null,null,null,null,null,null,null,null,null,null,null,null,null,null,null,null,null,null,null,null,null,null,null,null,null,null,null,null,null,null,null,null,null,null,null,null,null,null,null,null,null,null,null,null,null,null,null,null,null,null,null,null,null,null,null,null,null,null,null,null,null,null,"月分（翌月10日納入期限分）で"]
[null,null,null,null,null,null,null,null,null,null,null,"２．異動が令和　　　年１月１日以降で、特別徴収の継続の申出がないため\n　　※１月１日以降に退職される場合は、一括徴収してください。"]
[]
[null,null,null,null,null,null,null,null,null,null,null,null,null,null,null,null,null,null,null,null,null,null,null,null,null,null,null,null,null,null,null,null,null,null,null,null,null,null,null,null,null,null,null,null,null,null,null,null,null,null,null,null,null,null,null,null,null,null,null,null,null,null,null,null,null,null,null,null,null,null,null,null,null,null,null,null,null,null,null,null,null,null,null,null,null,null,null,null,null,null,null,null,null,null,null,null,null,null,null,null,null,null,null,null,null,null,null,null,null,null,null,null,null,null,null,null,null,null,null,null,null,null,null,null,null,null,null,null,null,"納入します。"]
[null,null,null,null,null,null,null,null,null,null,null,null,null,null,null,null,null,null,null,null,null,null,null,null,null,null,null,null,null,null,null,null,null,null,null,null,null,null,null,null,null,null,null,null,null,null,null,null,null,null,null,null,null,null,null,null,null,null,null,null,null,null,null,null,null,null,null,null,null,null,null,null,null,null,null,null,null,null,null,null,null,null,null,null,null,null,"月",null,null,null,null,null,null,null,null,"日",null,null,null,null,null,null,null,null,null,null,null,null,null,null,null,null,null,null,null,null,null,null,null,null,null,null,"円"]
[]
[]
[null,null,"③普通徴収の場合"]
[null,null,null,null,null,null,null,null,null,null,null,null,null,null,null,null,null,null,null,null,null,null,null,null,null,null,null,null,null,null,null,null,null,null,null,null,null,null,null,null,null,null,null,null,null,null,null,null,null,null,null,null,null,null,null,null,null,null,null,null,null,null,null,null,null,null,null,null,null,null,null,null,null,null,null,null,null,null,null,null,null,null,null,null,null,null,null,null,null,null,null,null,null,null,null,null,null,null,null,null,null,null,null,null,null,null,null,null,"　記入欄\n※市町村",null,null,null,null,null,null,null,null,null,null,null,null,null,null,null,null,null,null,null,null,null,null,null,null,null,null,null,null,null,null,null,"入力",null,null,null,null,null,null,null,null,"確認①",null,null,null,null,null,null,null,null,"確認②"]
[null,null,"理　由",null,null,null,null,null,null,null,null,"１．異動が令和　　　年12月31日までで、一括徴収の申出がないため　　※１月１日以降に退職される場合は、一括徴収してください。"]
[]
[]
[null,null,null,null,null,null,null,null,null,null,null,"２．令和　　　年５月31日までに支払われるべき給与又は退職手当等の額が未徴収税額 （ウ） 以下であるため"]
[]
[]
[null,null,null,null,null,null,null,null,null,null,null,"３．死亡による退職であるため"]

{"sheet":"退職（記載例）","index":1,"n_rows":93,"n_cols":159,"rows_kept":93,"cut":false,"hidden":false,"merged":[[87,158,93,166],[84,2,85,30],[85,140,86,148],[85,149,86,157],[85,158,86,166],[86,11,87,107],[87,5,89,8],[89,11,90,107],[92,11,93,107],[6,33,22,35],[6,36,22,41],[12,121,22,126],[23,2,50,4],[23,97,31,109],[29,117,47,120],[29,121,47,138],[39,51,47,66],[54,2,70,6],[57,77,70,79],[74,2,82,3],[85,108,93,111],[85,112,93,139],[86,2,93,3],[87,140,93,148],[87,149,93,157],[72,2,73,30],[74,11,77,78],[74,79,77,98],[74,99,77,126],[74,129,76,165],[75,5,77,8],[77,129,79,134],[77,135,79,165],[78,11,82,78],[78,80,82,85],[78,89,82,94],[78,101,82,121],[80,129,82,165],[81,86,82,88],[81,95,82,97],[81,122,82,124],[63,7,64,22],[63,23,64,76],[63,80,66,86],[63,87,66,117],[63,118,65,134],[63,135,65,166],[65,7,70,22],[65,23,70,76],[66,118,70,134],[66,146,70,166],[67,80,70,86],[67,87,70,106],[67,107,70,117],[67,136,69,140],[54,121,56,142],[54,143,56,156],[54,157,56,161],[57,7,62,22],[57,23,58,25],[57,26,58,37],[57,80,60,86],[57,87,60,117],[57,121,59,126],[57,127,59,163],[59,23,62,76],[60,121,62,163],[61,80,62,86],[61,87,62,117],[54,91,56,93],[54,94,56,96],[54,97,56,99],[54,100,56,102],[54,103,56,105],[54,106,56,108],[54,109,56,111],[54,112,56,114],[54,115,56,117],[52,2,53,38],[54,7,56,22],[54,23,56,54],[54,55,56,64],[54,65,56,78],[54,79,56,81],[54,82,56,84],[54,85,56,87],[54,88,56,90],[39,75,43,80],[39,83,43,89],[39,90,43,95],[39,98,43,105],[39,106,43,108],[39,147,40,165],[41,5,45,14],[41,15,45,50],[42,147,44,150],[42,151,44,165],[45,67,50,78],[45,82,50,93],[45,98,49,105],[45,106,49,108],[45,151,47,165],[46,5,50,14],[46,15,50,50],[48,64,50,66],[48,79,50,81],[48,94,50,96],[48,117,50,138],[48,147,49,165],[33,90,37,95],[33,98,37,105],[33,106,37,108],[33,147,34,165],[35,5,37,14],[35,15,37,17],[35,18,37,20],[35,21,37,23],[35,24,37,26],[35,27,37,29],[35,30,37,32],[35,33,37,35],[35,36,37,38],[35,39,37,41],[35,42,37,44],[35,45,37,47],[35,48,37,50],[36,110,41,116],[36,140,41,146],[36,147,38,150],[36,151,38,165],[38,5,40,14],[38,15,40,50],[39,68,43,74],[32,21,34,27],[32,28,34,30],[32,31,34,37],[32,38,34,40],[32,41,34,47],[32,48,34,50],[33,68,37,74],[33,75,37,80],[33,83,37,89],[19,97,22,99],[19,100,22,120],[20,127,22,134],[20,135,22,154],[20,155,22,166],[23,5,25,14],[23,15,25,50],[23,51,26,66],[23,67,26,81],[23,82,26,96],[23,110,28,139],[23,140,25,166],[26,5,31,14],[26,15,31,50],[26,140,28,166],[27,51,31,66],[27,67,31,81],[27,82,31,96],[30,147,32,150],[30,151,32,165],[31,111,34,115],[31,141,34,145],[32,5,34,14],[32,15,34,20],[19,70,22,72],[19,73,22,75],[19,76,22,78],[19,79,22,81],[19,82,22,84],[19,85,22,87],[19,88,22,90],[19,91,22,93],[19,94,22,96],[10,2,12,8],[12,42,13,60],[12,61,13,120],[12,127,14,134],[12,135,14,166],[13,3,16,22],[14,42,18,60],[14,61,18,120],[15,127,16,134],[15,135,16,166],[17,127,19,134],[17,135,19,166],[18,2,20,6],[18,7,20,10],[18,11,20,13],[18,14,20,17],[18,18,20,20],[18,21,20,24],[18,25,20,27],[18,28,20,32],[19,42,22,60],[19,61,22,63],[19,64,22,66],[19,67,22,69],[1,32,5,53],[1,54,5,99],[2,111,5,120],[2,121,5,166],[6,42,11,60],[6,61,7,63],[6,64,7,75],[6,121,11,134],[6,135,11,166],[8,61,11,120]]}
[]
[null,null,null,null,null,null,null,null,null,null,null,null,null,null,null,null,null,null,null,null,null,null,null,null,null,null,null,null,null,null,null,null,"給与支払報告\n特別徴収",null,null,null,null,null,null,null,null,null,null,null,null,null,null,null,null,null,null,null,null,null,"に係る給与所得者異動届出書"]
[null,null,null,null,null,null,null,null,null,null,null,null,null,null,null,null,null,null,null,null,null,null,null,null,null,null,null,null,null,null,null,null,null,null,null,null,null,null,null,null,null,null,null,null,null,null,null,null,null,null,null,null,null,null,null,null,null,null,null,null,null,null,null,null,null,null,null,null,null,null,null,null,null,null,null,null,null,null,null,null,null,null,null,null,null,null,null,null,null,null,null,null,null,null,null,null,null,null,null,null,null,null,null,null,null,null,null,null,null,null,null,"年 度",null,null,null,null,null,null,null,null,null,"１．　現年度　　　　２．　新年度　　　　３．　両年度"]
[]
[]
[]
[null,null,null,null,null,null,null,null,null,null,null,null,null,null,null,null,null,null,null,null,null,null,null,null,null,null,null,null,null,null,null,null,null,"給与支払者",null,null,"義務者\n特別徴収",null,null,null,null,null,"所　在　地",null,null,null,null,null,null,null,null,null,null,null,null,null,null,null,null,null,null,"〒",null,null,"876-0000",null,null,null,null,null,null,null,null,null,null,null,null,null,null,null,null,null,null,null,null,null,null,null,null,null,null,null,null,null,null,null,null,null,null,null,null,null,null,null,null,null,null,null,null,null,null,null,null,null,null,null,null,null,null,null,null,"特別徴収義務者\n指　定　番　号",null,null,null,null,null,null,null,null,null,null,null,null,null,90009999]
[]
[null,null,null,null,null,null,null,null,null,null,null,null,null,null,null,null,null,null,null,null,null,null,null,null,null,null,null,null,null,null,null,null,null,null,null,null,null,null,null,null,null,null,null,null,null,null,null,null,null,null,null,null,null,null,null,null,null,null,null,null,null,"佐伯市中村南町99番1号"]
[]
[null,null,"（宛先）"]
[]
[null,null,null,null,null,null,null,null,null,null,null,null,null,null,null,null,null,null,null,null,null,null,null,null,null,null,null,null,null,null,null,null,null,null,null,null,null,null,null,null,null,null,"フリガナ",null,null,null,null,null,null,null,null,null,null,null,null,null,null,null,null,null,null,"カブシキガイシャ　サイキショウジ",null,null,null,null,null,null,null,null,null,null,null,null,null,null,null,null,null,null,null,null,null,null,null,null,null,null,null,null,null,null,null,null,null,null,null,null,null,null,null,null,null,null,null,null,null,null,null,null,null,null,null,null,null,null,null,null,null,null,null,"連絡先\n担当者",null,null,null,null,null,"所 属",null,null,null,null,null,null,null,"総務課"]
[null,null,null,"佐 伯 市 長"]
[null,null,null,null,null,null,null,null,null,null,null,null,null,null,null,null,null,null,null,null,null,null,null,null,null,null,null,null,null,null,null,null,null,null,null,null,null,null,null,null,null,null,"氏名又は名称",null,null,null,null,null,null,null,null,null,null,null,null,null,null,null,null,null,null,"株式会社　佐伯商事"]
[null,null,null,null,null,null,null,null,null,null,null,null,null,null,null,null,null,null,null,null,null,null,null,null,null,null,null,null,null,null,null,null,null,null,null,null,null,null,null,null,null,null,null,null,null,null,null,null,null,null,null,null,null,null,null,null,null,null,null,null,null,null,null,null,null,null,null,null,null,null,null,null,null,null,null,null,null,null,null,null,null,null,null,null,null,null,null,null,null,null,null,null,null,null,null,null,null,null,null,null,null,null,null,null,null,null,null,null,null,null,null,null,null,null,null,null,null,null,null,null,null,null,null,null,null,null,null,"フリガナ",null,null,null,null,null,null,null,"カミウラ　ヨシコ"]
[]
[null,null,null,null,null,null,null,null,null,null,null,null,null,null,null,null,null,null,null,null,null,null,null,null,null,null,null,null,null,null,null,null,null,null,null,null,null,null,null,null,null,null,null,null,null,null,null,null,null,null,null,null,null,null,null,null,null,null,null,null,null,null,null,null,null,null,null,null,null,null,null,null,null,null,null,null,null,null,null,null,null,null,null,null,null,null,null,null,null,null,null,null,null,null,null,null,null,null,null,null,null,null,null,null,null,null,null,null,null,null,null,null,null,null,null,null,null,null,null,null,null,null,null,null,null,null,null,"氏 名",null,null,null,null,null,null,null,"上浦　好子"]
[null,null,"令和",null,null,null,null,8,null,null,null,"年",null,null,10,null,null,null,"月",null,null,10,null,null,null,"日",null,null,"提出"]
[null,null,null,null,null,null,null,null,null,null,null,null,null,null,null,null,null,null,null,null,null,null,null,null,null,null,null,null,null,null,null,null,null,null,null,null,null,null,null,null,null,null,"個人番号\n又は法人番号",null,null,null,null,null,null,null,null,null,null,null,null,null,null,null,null,null,null,1,null,null,2,null,null,3,null,null,4,null,null,5,null,null,6,null,null,7,null,null,8,null,null,9,null,null,0,null,null,1,null,null,2,null,null,3,null,null," ←個人番号の記載に当たっては、\n左端を空欄とし右詰めで記載"]
[null,null,null,null,null,null,null,null,null,null,null,null,null,null,null,null,null,null,null,null,null,null,null,null,null,null,null,null,null,null,null,null,null,null,null,null,null,null,null,null,null,null,null,null,null,null,null,null,null,null,null,null,null,null,null,null,null,null,null,null,null,null,null,null,null,null,null,null,null,null,null,null,null,null,null,null,null,null,null,null,null,null,null,null,null,null,null,null,null,null,null,null,null,null,null,null,null,null,null,null,null,null,null,null,null,null,null,null,null,null,null,null,null,null,null,null,null,null,null,null,null,null,null,null,null,null,null,"電 話",null,null,null,null,null,null,null,"0972-22-3111",null,null,null,null,null,null,null,null,null,null,null,null,null,null,null,null,null,null,null,"内線(　1234　)"]
[]
[]
[null,null,"給　与　所　得　者",null,null,"フリガナ",null,null,null,null,null,null,null,null,null,"サイキ　タロウ",null,null,null,null,null,null,null,null,null,null,null,null,null,null,null,null,null,null,null,null,null,null,null,null,null,null,null,null,null,null,null,null,null,null,null,"（ア）",null,null,null,null,null,null,null,null,null,null,null,null,null,null,null,"（イ）",null,null,null,null,null,null,null,null,null,null,null,null,null,null,"（ウ）",null,null,null,null,null,null,null,null,null,null,null,null,null,null,"異  　動\n年 月 日",null,null,null,null,null,null,null,null,null,null,null,null,"異　動　の　事　由",null,null,null,null,null,null,null,null,null,null,null,null,null,null,null,null,null,null,null,null,null,null,null,null,null,null,null,null,null,"異動後の未徴収"]
[]
[]
[null,null,null,null,null,"氏　名",null,null,null,null,null,null,null,null,null,"佐伯　太郎",null,null,null,null,null,null,null,null,null,null,null,null,null,null,null,null,null,null,null,null,null,null,null,null,null,null,null,null,null,null,null,null,null,null,null,null,null,null,null,null,null,null,null,null,null,null,null,null,null,null,null,null,null,null,null,null,null,null,null,null,null,null,null,null,null,null,null,null,null,null,null,null,null,null,null,null,null,null,null,null,null,null,null,null,null,null,null,null,null,null,null,null,null,null,null,null,null,null,null,null,null,null,null,null,null,null,null,null,null,null,null,null,null,null,null,null,null,null,null,null,null,null,null,null,"税額の徴収方法"]
[null,null,null,null,null,null,null,null,null,null,null,null,null,null,null,null,null,null,null,null,null,null,null,null,null,null,null,null,null,null,null,null,null,null,null,null,null,null,null,null,null,null,null,null,null,null,null,null,null,null,null,"特別徴収税額\n（年税額）",null,null,null,null,null,null,null,null,null,null,null,null,null,null,null,"徴収済額",null,null,null,null,null,null,null,null,null,null,null,null,null,null,"未徴収税額\n（ア）－（イ）"]
[]
[null,null,null,null,null,null,null,null,null,null,null,null,null,null,null,null,null,null,null,null,null,null,null,null,null,null,null,null,null,null,null,null,null,null,null,null,null,null,null,null,null,null,null,null,null,null,null,null,null,null,null,null,null,null,null,null,null,null,null,null,null,null,null,null,null,null,null,null,null,null,null,null,null,null,null,null,null,null,null,null,null,null,null,null,null,null,null,null,null,null,null,null,null,null,null,null,null,null,null,null,null,null,null,null,null,null,null,null,null,null,null,null,null,null,null,null,null,"１．\n２．\n３．\n４．\n５．\n６．\n７．\n８．",null,null,null,"退職\n転勤\n休職・長欠\n死亡\n支払少額・不定期\n合併・解散\n事業所変更\nその他"]
[null,null,null,null,null,null,null,null,null,null,null,null,null,null,null,null,null,null,null,null,null,null,null,null,null,null,null,null,null,null,null,null,null,null,null,null,null,null,null,null,null,null,null,null,null,null,null,null,null,null,null,null,null,null,null,null,null,null,null,null,null,null,null,null,null,null,null,null,null,null,null,null,null,null,null,null,null,null,null,null,null,null,null,null,null,null,null,null,null,null,null,null,null,null,null,null,null,null,null,null,null,null,null,null,null,null,null,null,null,null,null,null,null,null,null,null,null,null,null,null,null,null,null,null,null,null,null,null,null,null,null,null,null,null,null,null,null,null,null,null,null,null,null,null,null,null,null,"１．",null,null,null,"特別徴収継続"]
[null,null,null,null,null,null,null,null,null,null,null,null,null,null,null,null,null,null,null,null,null,null,null,null,null,null,null,null,null,null,null,null,null,null,null,null,null,null,null,null,null,null,null,null,null,null,null,null,null,null,null,null,null,null,null,null,null,null,null,null,null,null,null,null,null,null,null,null,null,null,null,null,null,null,null,null,null,null,null,null,null,null,null,null,null,null,null,null,null,null,null,null,null,null,null,null,null,null,null,null,null,null,null,null,null,null,null,null,null,null,null,1,null,null,null,null,null,null,null,null,null,null,null,null,null,null,null,null,null,null,null,null,null,null,null,null,null,null,null,null,null,3]
[null,null,null,null,null,"生年月日",null,null,null,null,null,null,null,null,null,"昭和",null,null,null,null,null,40,null,null,null,null,null,null,"年",null,null,1,null,null,null,null,null,null,"月",null,null,15,null,null,null,null,null,null,"日"]
[null,null,null,null,null,null,null,null,null,null,null,null,null,null,null,null,null,null,null,null,null,null,null,null,null,null,null,null,null,null,null,null,null,null,null,null,null,null,null,null,null,null,null,null,null,null,null,null,null,null,null,null,null,null,null,null,null,null,null,null,null,null,null,null,null,null,null,null,6,null,null,null,null,null,null,"月から",null,null,null,null,null,null,null,10,null,null,null,null,null,null,"月から",null,null,null,null,null,null,null,8,null,null,null,null,null,null,null,"年",null,null,null,null,null,null,null,null,null,null,null,null,null,null,null,null,null,null,null,null,null,null,null,null,null,null,null,null,null,null,null,null,null,null,null,null,null,null,null,null,"→①欄に記入してください"]
[]
[null,null,null,null,null,"個人番号",null,null,null,null,null,null,null,null,null,9,null,null,8,null,null,7,null,null,6,null,null,5,null,null,4,null,null,3,null,null,2,null,null,1,null,null,0,null,null,9,null,null,8]
[null,null,null,null,null,null,null,null,null,null,null,null,null,null,null,null,null,null,null,null,null,null,null,null,null,null,null,null,null,null,null,null,null,null,null,null,null,null,null,null,null,null,null,null,null,null,null,null,null,null,null,null,null,null,null,null,null,null,null,null,null,null,null,null,null,null,null,null,null,null,null,null,null,null,null,null,null,null,null,null,null,null,null,null,null,null,null,null,null,null,null,null,null,null,null,null,null,null,null,null,null,null,null,null,null,null,null,null,null,null,"右から\n番号を\n記入",null,null,null,null,null,null,null,null,null,null,null,null,null,null,null,null,null,null,null,null,null,null,null,null,null,null,null,null,null,"右から\n番号を\n記入",null,null,null,null,null,null,"２．",null,null,null,"一括徴収"]
[]
[null,null,null,null,null,"受給者番号",null,null,null,null,null,null,null,null,null,"A－001"]
[null,null,null,null,null,null,null,null,null,null,null,null,null,null,null,null,null,null,null,null,null,null,null,null,null,null,null,null,null,null,null,null,null,null,null,null,null,null,null,null,null,null,null,null,null,null,null,null,null,null,null,120000,null,null,null,null,null,null,null,null,null,null,null,null,null,null,null,null,9,null,null,null,null,null,null,"月まで",null,null,null,null,null,null,null,5,null,null,null,null,null,null,"月まで",null,null,null,null,null,null,null,9,null,null,null,null,null,null,null,"月",null,null,null,null,null,null,null,null,null,null,null,null,null,null,null,null,null,null,null,null,null,null,null,null,null,null,null,null,null,null,null,null,null,null,null,null,null,null,null,null,"→②欄に記入してください"]
[]
[null,null,null,null,null,"１月１日\n現在の住所",null,null,null,null,null,null,null,null,null,"佐伯市中村南町1番1号"]
[null,null,null,null,null,null,null,null,null,null,null,null,null,null,null,null,null,null,null,null,null,null,null,null,null,null,null,null,null,null,null,null,null,null,null,null,null,null,null,null,null,null,null,null,null,null,null,null,null,null,null,null,null,null,null,null,null,null,null,null,null,null,null,null,null,null,null,null,null,null,null,null,null,null,null,null,null,null,null,null,null,null,null,null,null,null,null,null,null,null,null,null,null,null,null,null,null,null,null,null,null,null,null,null,null,null,null,null,null,null,null,null,null,null,null,null,null,null,null,null,null,null,null,null,null,null,null,null,null,null,null,null,null,null,null,null,null,null,null,null,null,null,null,null,null,null,null,"３．",null,null,null,"普通徴収"]
[]
[]
[null,null,null,null,null,null,null,null,null,null,null,null,null,null,null,null,null,null,null,null,null,null,null,null,null,null,null,null,null,null,null,null,null,null,null,null,null,null,null,null,null,null,null,null,null,null,null,null,null,null,null,null,null,null,null,null,null,null,null,null,null,null,null,null,null,null,null,40000,null,null,null,null,null,null,null,null,null,null,null,null,null,null,80000,null,null,null,null,null,null,null,null,null,null,null,null,null,null,null,30,null,null,null,null,null,null,null,"日",null,null,null,null,null,null,null,null,null,null,null,null,null,null,null,null,null,null,null,null,null,null,null,null,null,null,null,null,null,null,null,null,null,null,null,null,null,null,null,null,null,null,null,null,"（本人納付）"]
[null,null,null,null,null,"異動後の\n住 所"]
[]
[null,null,null,null,null,null,null,null,null,null,null,null,null,null,null,null,null,null,null,null,null,null,null,null,null,null,null,null,null,null,null,null,null,null,null,null,null,null,null,null,null,null,null,null,null,null,null,null,null,null,null,null,null,null,null,null,null,null,null,null,null,null,null,null,"円",null,null,null,null,null,null,null,null,null,null,null,null,null,null,"円",null,null,null,null,null,null,null,null,null,null,null,null,null,null,"円",null,null,null,null,null,null,null,null,null,null,null,null,null,null,null,null,null,null,null,null,null,null,null,null,null,null,null,null,null,null,null,null,null,null,null,null,null,null,null,null,null,null,null,null,null,null,null,null,null,null,null,null,"→③欄に記入してください"]
[]
[]
[]
[null,null,"①特別徴収継続の場合"]
[]
[null,null,"（特別徴収義務者）\n新しい勤務先",null,null,null,null,"特別徴収義務者\n指　定　番　号",null,null,null,null,null,null,null,null,null,null,null,null,null,null,null,null,null,null,null,null,null,null,null,null,null,null,null,null,null,null,null,null,null,null,null,null,null,null,null,null,null,null,null,null,null,null,null,"新規",null,null,null,null,null,null,null,null,null,"個人番号\n又は法人番号",null,null,null,null,null,null,null,null,null,null,null,null,null,null,null,null,null,null,null,null,null,null,null,null,null,null,null,null,null,null,null,null,null,null,null,null,null,null,null,null,null,null,null,null,null,null,null,null,null,null,null,null,null,null,null,"新しい勤務先へは、月割額  ",null,null,null,null,null,null,null,null,null,null,null,null,null,null,null,null,null,null,null,null,null,null,null,null,null,null,null,null,null,null,null,null,null,null,null,"円を"]
[]
[]
[null,null,null,null,null,null,null,"所　在　地",null,null,null,null,null,null,null,null,null,null,null,null,null,null,null,"〒",null,null,null,null,null,null,null,null,null,null,null,null,null,null,null,null,null,null,null,null,null,null,null,null,null,null,null,null,null,null,null,null,null,null,null,null,null,null,null,null,null,null,null,null,null,null,null,null,null,null,null,null,null,"担当者連絡先",null,null,"所属",null,null,null,null,null,null,null,null,null,null,null,null,null,null,null,null,null,null,null,null,null,null,null,null,null,null,null,null,null,null,null,null,null,null,null,null,null,null,null,null,null,null,null,null,null,null,"月分（翌月10日納入期限分）から"]
[]
[]
[null,null,null,null,null,null,null,null,null,null,null,null,null,null,null,null,null,null,null,null,null,null,null,null,null,null,null,null,null,null,null,null,null,null,null,null,null,null,null,null,null,null,null,null,null,null,null,null,null,null,null,null,null,null,null,null,null,null,null,null,null,null,null,null,null,null,null,null,null,null,null,null,null,null,null,null,null,null,null,null,null,null,null,null,null,null,null,null,null,null,null,null,null,null,null,null,null,null,null,null,null,null,null,null,null,null,null,null,null,null,null,null,null,null,null,null,null,null,null,null,null,"徴収し、納入するよう連絡済みです。"]
[null,null,null,null,null,null,null,null,null,null,null,null,null,null,null,null,null,null,null,null,null,null,null,null,null,null,null,null,null,null,null,null,null,null,null,null,null,null,null,null,null,null,null,null,null,null,null,null,null,null,null,null,null,null,null,null,null,null,null,null,null,null,null,null,null,null,null,null,null,null,null,null,null,null,null,null,null,null,null,null,"フリガナ"]
[]
[null,null,null,null,null,null,null,"フリガナ",null,null,null,null,null,null,null,null,null,null,null,null,null,null,null,null,null,null,null,null,null,null,null,null,null,null,null,null,null,null,null,null,null,null,null,null,null,null,null,null,null,null,null,null,null,null,null,null,null,null,null,null,null,null,null,null,null,null,null,null,null,null,null,null,null,null,null,null,null,null,null,null,"氏名",null,null,null,null,null,null,null,null,null,null,null,null,null,null,null,null,null,null,null,null,null,null,null,null,null,null,null,null,null,null,null,null,null,null,null,null,null,"受給者番号"]
[]
[null,null,null,null,null,null,null,"氏名又は名称"]
[null,null,null,null,null,null,null,null,null,null,null,null,null,null,null,null,null,null,null,null,null,null,null,null,null,null,null,null,null,null,null,null,null,null,null,null,null,null,null,null,null,null,null,null,null,null,null,null,null,null,null,null,null,null,null,null,null,null,null,null,null,null,null,null,null,null,null,null,null,null,null,null,null,null,null,null,null,null,null,null,null,null,null,null,null,null,null,null,null,null,null,null,null,null,null,null,null,null,null,null,null,null,null,null,null,null,null,null,null,null,null,null,null,null,null,null,null,null,"納入書の要否\n（新規の場合のみ記載）",null,null,null,null,null,null,null,null,null,null,null,null,null,null,null,null,null,null,null,null,null,null,null,null,null,null,null,"１．必要　　２．不要 "]
[null,null,null,null,null,null,null,null,null,null,null,null,null,null,null,null,null,null,null,null,null,null,null,null,null,null,null,null,null,null,null,null,null,null,null,null,null,null,null,null,null,null,null,null,null,null,null,null,null,null,null,null,null,null,null,null,null,null,null,null,null,null,null,null,null,null,null,null,null,null,null,null,null,null,null,null,null,null,null,null,"電話",null,null,null,null,null,null,null,null,null,null,null,null,null,null,null,null,null,null,null,null,null,null,null,null,null,null,"内線(　　　　　)"]
[]
[]
[]
[]
[null,null,"②一括徴収の場合"]
[]
[null,null,"理　由",null,null,null,null,null,null,null,null,"１．異動が令和　　　年12月31日までで、一括徴収の申出があったため",null,null,null,null,null,null,null,null,null,null,null,null,null,null,null,null,null,null,null,null,null,null,null,null,null,null,null,null,null,null,null,null,null,null,null,null,null,null,null,null,null,null,null,null,null,null,null,null,null,null,null,null,null,null,null,null,null,null,null,null,null,null,null,null,null,null,null,"徴収予定月日",null,null,null,null,null,null,null,null,null,null,null,null,null,null,null,null,null,null,null,"徴収予定額\n（上記（ウ）と同額）",null,null,null,null,null,null,null,null,null,null,null,null,null,null,null,null,null,null,null,null,null,null,null,null,null,null,null,null,null,"左記の一括徴収した税額は、"]
[]
[]
[null,null,null,null,null,null,null,null,null,null,null,null,null,null,null,null,null,null,null,null,null,null,null,null,null,null,null,null,null,null,null,null,null,null,null,null,null,null,null,null,null,null,null,null,null,null,null,null,null,null,null,null,null,null,null,null,null,null,null,null,null,null,null,null,null,null,null,null,null,null,null,null,null,null,null,null,null,null,null,null,null,null,null,null,null,null,null,null,null,null,null,null,null,null,null,null,null,null,null,null,null,null,null,null,null,null,null,null,null,null,null,null,null,null,null,null,null,null,null,null,null,null,null,null,null,null,null,null,null,null,null,null,null,null,null,"月分（翌月10日納入期限分）で"]
[null,null,null,null,null,null,null,null,null,null,null,"２．異動が令和　　　年１月１日以降で、特別徴収の継続の申出がないため\n　　※１月１日以降に退職される場合は、一括徴収してください。"]
[]
[null,null,null,null,null,null,null,null,null,null,null,null,null,null,null,null,null,null,null,null,null,null,null,null,null,null,null,null,null,null,null,null,null,null,null,null,null,null,null,null,null,null,null,null,null,null,null,null,null,null,null,null,null,null,null,null,null,null,null,null,null,null,null,null,null,null,null,null,null,null,null,null,null,null,null,null,null,null,null,null,null,null,null,null,null,null,null,null,null,null,null,null,null,null,null,null,null,null,null,null,null,null,null,null,null,null,null,null,null,null,null,null,null,null,null,null,null,null,null,null,null,null,null,null,null,null,null,null,null,"納入します。"]
[null,null,null,null,null,null,null,null,null,null,null,null,null,null,null,null,null,null,null,null,null,null,null,null,null,null,null,null,null,null,null,null,null,null,null,null,null,null,null,null,null,null,null,null,null,null,null,null,null,null,null,null,null,null,null,null,null,null,null,null,null,null,null,null,null,null,null,null,null,null,null,null,null,null,null,null,null,null,null,null,null,null,null,null,null,null,"月",null,null,null,null,null,null,null,null,"日",null,null,null,null,null,null,null,null,null,null,null,null,null,null,null,null,null,null,null,null,null,null,null,null,null,null,"円"]
[]
[]
[null,null,"③普通徴収の場合"]
[null,null,null,null,null,null,null,null,null,null,null,null,null,null,null,null,null,null,null,null,null,null,null,null,null,null,null,null,null,null,null,null,null,null,null,null,null,null,null,null,null,null,null,null,null,null,null,null,null,null,null,null,null,null,null,null,null,null,null,null,null,null,null,null,null,null,null,null,null,null,null,null,null,null,null,null,null,null,null,null,null,null,null,null,null,null,null,null,null,null,null,null,null,null,null,null,null,null,null,null,null,null,null,null,null,null,null,null,"　記入欄\n※市町村",null,null,null,null,null,null,null,null,null,null,null,null,null,null,null,null,null,null,null,null,null,null,null,null,null,null,null,null,null,null,null,"入力",null,null,null,null,null,null,null,null,"確認①",null,null,null,null,null,null,null,null,"確認②"]
[null,null,"理　由",null,null,null,null,null,null,null,null,"１．異動が令和　8　年12月31日までで、一括徴収の申出がないため　　※１月１日以降に退職される場合は、一括徴収してください。"]
[null,null,null,null,null,1]
[]
[null,null,null,null,null,null,null,null,null,null,null,"２．令和　　　年５月31日までに支払われるべき給与又は退職手当等の額が未徴収税額 （ウ） 以下であるため"]
[]
[]
[null,null,null,null,null,null,null,null,null,null,null,"３．死亡による退職であるため"]

{"sheet":"一括徴収（記載例）","index":2,"n_rows":93,"n_cols":159,"rows_kept":93,"cut":false,"hidden":false,"merged":[[87,158,93,166],[84,2,85,30],[85,140,86,148],[85,149,86,157],[85,158,86,166],[86,11,87,107],[87,5,89,8],[89,11,90,107],[92,11,93,107],[6,33,22,35],[6,36,22,41],[12,121,22,126],[23,2,50,4],[23,97,31,109],[29,117,47,120],[29,121,47,138],[39,51,47,66],[54,2,70,6],[57,77,70,79],[74,2,82,3],[85,108,93,111],[85,112,93,139],[86,2,93,3],[87,140,93,148],[87,149,93,157],[72,2,73,30],[74,11,77,78],[74,79,77,98],[74,99,77,126],[74,129,76,165],[75,5,77,8],[77,129,79,134],[77,135,79,165],[78,11,82,78],[78,80,82,85],[78,89,82,94],[78,101,82,121],[80,129,82,165],[81,86,82,88],[81,95,82,97],[81,122,82,124],[63,7,64,22],[63,23,64,76],[63,80,66,86],[63,87,66,117],[63,118,65,134],[63,135,65,166],[65,7,70,22],[65,23,70,76],[66,118,70,134],[66,146,70,166],[67,80,70,86],[67,87,70,106],[67,107,70,117],[67,136,69,140],[54,121,56,142],[54,143,56,156],[54,157,56,161],[57,7,62,22],[57,23,58,25],[57,26,58,37],[57,80,60,86],[57,87,60,117],[57,121,59,126],[57,127,59,163],[59,23,62,76],[60,121,62,163],[61,80,62,86],[61,87,62,117],[54,91,56,93],[54,94,56,96],[54,97,56,99],[54,100,56,102],[54,103,56,105],[54,106,56,108],[54,109,56,111],[54,112,56,114],[54,115,56,117],[52,2,53,38],[54,7,56,22],[54,23,56,54],[54,55,56,64],[54,65,56,78],[54,79,56,81],[54,82,56,84],[54,85,56,87],[54,88,56,90],[39,75,43,80],[39,83,43,89],[39,90,43,95],[39,98,43,105],[39,106,43,108],[39,147,40,165],[41,5,45,14],[41,15,45,50],[42,147,44,150],[42,151,44,165],[45,67,50,78],[45,82,50,93],[45,98,49,105],[45,106,49,108],[45,151,47,165],[46,5,50,14],[46,15,50,50],[48,64,50,66],[48,79,50,81],[48,94,50,96],[48,117,50,138],[48,147,49,165],[33,90,37,95],[33,98,37,105],[33,106,37,108],[33,147,34,165],[35,5,37,14],[35,15,37,17],[35,18,37,20],[35,21,37,23],[35,24,37,26],[35,27,37,29],[35,30,37,32],[35,33,37,35],[35,36,37,38],[35,39,37,41],[35,42,37,44],[35,45,37,47],[35,48,37,50],[36,110,41,116],[36,140,41,146],[36,147,38,150],[36,151,38,165],[38,5,40,14],[38,15,40,50],[39,68,43,74],[32,21,34,27],[32,28,34,30],[32,31,34,37],[32,38,34,40],[32,41,34,47],[32,48,34,50],[33,68,37,74],[33,75,37,80],[33,83,37,89],[19,97,22,99],[19,100,22,120],[20,127,22,134],[20,135,22,154],[20,155,22,166],[23,5,25,14],[23,15,25,50],[23,51,26,66],[23,67,26,81],[23,82,26,96],[23,110,28,139],[23,140,25,166],[26,5,31,14],[26,15,31,50],[26,140,28,166],[27,51,31,66],[27,67,31,81],[27,82,31,96],[30,147,32,150],[30,151,32,165],[31,111,34,115],[31,141,34,145],[32,5,34,14],[32,15,34,20],[19,70,22,72],[19,73,22,75],[19,76,22,78],[19,79,22,81],[19,82,22,84],[19,85,22,87],[19,88,22,90],[19,91,22,93],[19,94,22,96],[10,2,12,8],[12,42,13,60],[12,61,13,120],[12,127,14,134],[12,135,14,166],[13,3,16,22],[14,42,18,60],[14,61,18,120],[15,127,16,134],[15,135,16,166],[17,127,19,134],[17,135,19,166],[18,2,20,6],[18,7,20,10],[18,11,20,13],[18,14,20,17],[18,18,20,20],[18,21,20,24],[18,25,20,27],[18,28,20,32],[19,42,22,60],[19,61,22,63],[19,64,22,66],[19,67,22,69],[1,32,5,53],[1,54,5,99],[2,111,5,120],[2,121,5,166],[6,42,11,60],[6,61,7,63],[6,64,7,75],[6,121,11,134],[6,135,11,166],[8,61,11,120]]}
[]
[null,null,null,null,null,null,null,null,null,null,null,null,null,null,null,null,null,null,null,null,null,null,null,null,null,null,null,null,null,null,null,null,"給与支払報告\n特別徴収",null,null,null,null,null,null,null,null,null,null,null,null,null,null,null,null,null,null,null,null,null,"に係る給与所得者異動届出書"]
[null,null,null,null,null,null,null,null,null,null,null,null,null,null,null,null,null,null,null,null,null,null,null,null,null,null,null,null,null,null,null,null,null,null,null,null,null,null,null,null,null,null,null,null,null,null,null,null,null,null,null,null,null,null,null,null,null,null,null,null,null,null,null,null,null,null,null,null,null,null,null,null,null,null,null,null,null,null,null,null,null,null,null,null,null,null,null,null,null,null,null,null,null,null,null,null,null,null,null,null,null,null,null,null,null,null,null,null,null,null,null,"年 度",null,null,null,null,null,null,null,null,null,"１．　現年度　　　　２．　新年度　　　　３．　両年度"]
[]
[]
[]
[null,null,null,null,null,null,null,null,null,null,null,null,null,null,null,null,null,null,null,null,null,null,null,null,null,null,null,null,null,null,null,null,null,"給与支払者",null,null,"義務者\n特別徴収",null,null,null,null,null,"所　在　地",null,null,null,null,null,null,null,null,null,null,null,null,null,null,null,null,null,null,"〒",null,null,"876-0000",null,null,null,null,null,null,null,null,null,null,null,null,null,null,null,null,null,null,null,null,null,null,null,null,null,null,null,null,null,null,null,null,null,null,null,null,null,null,null,null,null,null,null,null,null,null,null,null,null,null,null,null,null,null,null,null,"特別徴収義務者\n指　定　番　号",null,null,null,null,null,null,null,null,null,null,null,null,null,90009999]
[]
[null,null,null,null,null,null,null,null,null,null,null,null,null,null,null,null,null,null,null,null,null,null,null,null,null,null,null,null,null,null,null,null,null,null,null,null,null,null,null,null,null,null,null,null,null,null,null,null,null,null,null,null,null,null,null,null,null,null,null,null,null,"佐伯市中村南町99番1号"]
[]
[null,null,"（宛先）"]
[]
[null,null,null,null,null,null,null,null,null,null,null,null,null,null,null,null,null,null,null,null,null,null,null,null,null,null,null,null,null,null,null,null,null,null,null,null,null,null,null,null,null,null,"フリガナ",null,null,null,null,null,null,null,null,null,null,null,null,null,null,null,null,null,null,"カブシキガイシャ　サイキショウジ",null,null,null,null,null,null,null,null,null,null,null,null,null,null,null,null,null,null,null,null,null,null,null,null,null,null,null,null,null,null,null,null,null,null,null,null,null,null,null,null,null,null,null,null,null,null,null,null,null,null,null,null,null,null,null,null,null,null,null,"連絡先\n担当者",null,null,null,null,null,"所 属",null,null,null,null,null,null,null,"総務課"]
[null,null,null,"佐 伯 市 長"]
[null,null,null,null,null,null,null,null,null,null,null,null,null,null,null,null,null,null,null,null,null,null,null,null,null,null,null,null,null,null,null,null,null,null,null,null,null,null,null,null,null,null,"氏名又は名称",null,null,null,null,null,null,null,null,null,null,null,null,null,null,null,null,null,null,"株式会社　佐伯商事"]
[null,null,null,null,null,null,null,null,null,null,null,null,null,null,null,null,null,null,null,null,null,null,null,null,null,null,null,null,null,null,null,null,null,null,null,null,null,null,null,null,null,null,null,null,null,null,null,null,null,null,null,null,null,null,null,null,null,null,null,null,null,null,null,null,null,null,null,null,null,null,null,null,null,null,null,null,null,null,null,null,null,null,null,null,null,null,null,null,null,null,null,null,null,null,null,null,null,null,null,null,null,null,null,null,null,null,null,null,null,null,null,null,null,null,null,null,null,null,null,null,null,null,null,null,null,null,null,"フリガナ",null,null,null,null,null,null,null,"カミウラ　ヨシコ"]
[]
[null,null,null,null,null,null,null,null,null,null,null,null,null,null,null,null,null,null,null,null,null,null,null,null,null,null,null,null,null,null,null,null,null,null,null,null,null,null,null,null,null,null,null,null,null,null,null,null,null,null,null,null,null,null,null,null,null,null,null,null,null,null,null,null,null,null,null,null,null,null,null,null,null,null,null,null,null,null,null,null,null,null,null,null,null,null,null,null,null,null,null,null,null,null,null,null,null,null,null,null,null,null,null,null,null,null,null,null,null,null,null,null,null,null,null,null,null,null,null,null,null,null,null,null,null,null,null,"氏 名",null,null,null,null,null,null,null,"上浦　好子"]
[null,null,"令和",null,null,null,null,8,null,null,null,"年",null,null,10,null,null,null,"月",null,null,10,null,null,null,"日",null,null,"提出"]
[null,null,null,null,null,null,null,null,null,null,null,null,null,null,null,null,null,null,null,null,null,null,null,null,null,null,null,null,null,null,null,null,null,null,null,null,null,null,null,null,null,null,"個人番号\n又は法人番号",null,null,null,null,null,null,null,null,null,null,null,null,null,null,null,null,null,null,1,null,null,2,null,null,3,null,null,4,null,null,5,null,null,6,null,null,7,null,null,8,null,null,9,null,null,0,null,null,1,null,null,2,null,null,3,null,null," ←個人番号の記載に当たっては、\n左端を空欄とし右詰めで記載"]
[null,null,null,null,null,null,null,null,null,null,null,null,null,null,null,null,null,null,null,null,null,null,null,null,null,null,null,null,null,null,null,null,null,null,null,null,null,null,null,null,null,null,null,null,null,null,null,null,null,null,null,null,null,null,null,null,null,null,null,null,null,null,null,null,null,null,null,null,null,null,null,null,null,null,null,null,null,null,null,null,null,null,null,null,null,null,null,null,null,null,null,null,null,null,null,null,null,null,null,null,null,null,null,null,null,null,null,null,null,null,null,null,null,null,null,null,null,null,null,null,null,null,null,null,null,null,null,"電 話",null,null,null,null,null,null,null,"0972-22-3111",null,null,null,null,null,null,null,null,null,null,null,null,null,null,null,null,null,null,null,"内線(　1234　)"]
[]
[]
[null,null,"給　与　所　得　者",null,null,"フリガナ",null,null,null,null,null,null,null,null,null,"サイキ　タロウ",null,null,null,null,null,null,null,null,null,null,null,null,null,null,null,null,null,null,null,null,null,null,null,null,null,null,null,null,null,null,null,null,null,null,null,"（ア）",null,null,null,null,null,null,null,null,null,null,null,null,null,null,null,"（イ）",null,null,null,null,null,null,null,null,null,null,null,null,null,null,"（ウ）",null,null,null,null,null,null,null,null,null,null,null,null,null,null,"異  　動\n年 月 日",null,null,null,null,null,null,null,null,null,null,null,null,"異　動　の　事　由",null,null,null,null,null,null,null,null,null,null,null,null,null,null,null,null,null,null,null,null,null,null,null,null,null,null,null,null,null,"異動後の未徴収"]
[]
[]
[null,null,null,null,null,"氏　名",null,null,null,null,null,null,null,null,null,"佐伯　太郎",null,null,null,null,null,null,null,null,null,null,null,null,null,null,null,null,null,null,null,null,null,null,null,null,null,null,null,null,null,null,null,null,null,null,null,null,null,null,null,null,null,null,null,null,null,null,null,null,null,null,null,null,null,null,null,null,null,null,null,null,null,null,null,null,null,null,null,null,null,null,null,null,null,null,null,null,null,null,null,null,null,null,null,null,null,null,null,null,null,null,null,null,null,null,null,null,null,null,null,null,null,null,null,null,null,null,null,null,null,null,null,null,null,null,null,null,null,null,null,null,null,null,null,null,"税額の徴収方法"]
[null,null,null,null,null,null,null,null,null,null,null,null,null,null,null,null,null,null,null,null,null,null,null,null,null,null,null,null,null,null,null,null,null,null,null,null,null,null,null,null,null,null,null,null,null,null,null,null,null,null,null,"特別徴収税額\n（年税額）",null,null,null,null,null,null,null,null,null,null,null,null,null,null,null,"徴収済額",null,null,null,null,null,null,null,null,null,null,null,null,null,null,"未徴収税額\n（ア）－（イ）"]
[]
[null,null,null,null,null,null,null,null,null,null,null,null,null,null,null,null,null,null,null,null,null,null,null,null,null,null,null,null,null,null,null,null,null,null,null,null,null,null,null,null,null,null,null,null,null,null,null,null,null,null,null,null,null,null,null,null,null,null,null,null,null,null,null,null,null,null,null,null,null,null,null,null,null,null,null,null,null,null,null,null,null,null,null,null,null,null,null,null,null,null,null,null,null,null,null,null,null,null,null,null,null,null,null,null,null,null,null,null,null,null,null,null,null,null,null,null,null,"１．\n２．\n３．\n４．\n５．\n６．\n７．\n８．",null,null,null,"退職\n転勤\n休職・長欠\n死亡\n支払少額・不定期\n合併・解散\n事業所変更\nその他"]
[null,null,null,null,null,null,null,null,null,null,null,null,null,null,null,null,null,null,null,null,null,null,null,null,null,null,null,null,null,null,null,null,null,null,null,null,null,null,null,null,null,null,null,null,null,null,null,null,null,null,null,null,null,null,null,null,null,null,null,null,null,null,null,null,null,null,null,null,null,null,null,null,null,null,null,null,null,null,null,null,null,null,null,null,null,null,null,null,null,null,null,null,null,null,null,null,null,null,null,null,null,null,null,null,null,null,null,null,null,null,null,null,null,null,null,null,null,null,null,null,null,null,null,null,null,null,null,null,null,null,null,null,null,null,null,null,null,null,null,null,null,null,null,null,null,null,null,"１．",null,null,null,"特別徴収継続"]
[null,null,null,null,null,null,null,null,null,null,null,null,null,null,null,null,null,null,null,null,null,null,null,null,null,null,null,null,null,null,null,null,null,null,null,null,null,null,null,null,null,null,null,null,null,null,null,null,null,null,null,null,null,null,null,null,null,null,null,null,null,null,null,null,null,null,null,null,null,null,null,null,null,null,null,null,null,null,null,null,null,null,null,null,null,null,null,null,null,null,null,null,null,null,null,null,null,null,null,null,null,null,null,null,null,null,null,null,null,null,null,1,null,null,null,null,null,null,null,null,null,null,null,null,null,null,null,null,null,null,null,null,null,null,null,null,null,null,null,null,null,2]
[null,null,null,null,null,"生年月日",null,null,null,null,null,null,null,null,null,"昭和",null,null,null,null,null,40,null,null,null,null,null,null,"年",null,null,1,null,null,null,null,null,null,"月",null,null,15,null,null,null,null,null,null,"日"]
[null,null,null,null,null,null,null,null,null,null,null,null,null,null,null,null,null,null,null,null,null,null,null,null,null,null,null,null,null,null,null,null,null,null,null,null,null,null,null,null,null,null,null,null,null,null,null,null,null,null,null,null,null,null,null,null,null,null,null,null,null,null,null,null,null,null,null,null,6,null,null,null,null,null,null,"月から",null,null,null,null,null,null,null,10,null,null,null,null,null,null,"月から",null,null,null,null,null,null,null,8,null,null,null,null,null,null,null,"年",null,null,null,null,null,null,null,null,null,null,null,null,null,null,null,null,null,null,null,null,null,null,null,null,null,null,null,null,null,null,null,null,null,null,null,null,null,null,null,null,"→①欄に記入してください"]
[]
[null,null,null,null,null,"個人番号",null,null,null,null,null,null,null,null,null,9,null,null,8,null,null,7,null,null,6,null,null,5,null,null,4,null,null,3,null,null,2,null,null,1,null,null,0,null,null,9,null,null,8]
[null,null,null,null,null,null,null,null,null,null,null,null,null,null,null,null,null,null,null,null,null,null,null,null,null,null,null,null,null,null,null,null,null,null,null,null,null,null,null,null,null,null,null,null,null,null,null,null,null,null,null,null,null,null,null,null,null,null,null,null,null,null,null,null,null,null,null,null,null,null,null,null,null,null,null,null,null,null,null,null,null,null,null,null,null,null,null,null,null,null,null,null,null,null,null,null,null,null,null,null,null,null,null,null,null,null,null,null,null,null,"右から\n番号を\n記入",null,null,null,null,null,null,null,null,null,null,null,null,null,null,null,null,null,null,null,null,null,null,null,null,null,null,null,null,null,"右から\n番号を\n記入",null,null,null,null,null,null,"２．",null,null,null,"一括徴収"]
[]
[null,null,null,null,null,"受給者番号",null,null,null,null,null,null,null,null,null,"A－001"]
[null,null,null,null,null,null,null,null,null,null,null,null,null,null,null,null,null,null,null,null,null,null,null,null,null,null,null,null,null,null,null,null,null,null,null,null,null,null,null,null,null,null,null,null,null,null,null,null,null,null,null,120000,null,null,null,null,null,null,null,null,null,null,null,null,null,null,null,null,9,null,null,null,null,null,null,"月まで",null,null,null,null,null,null,null,5,null,null,null,null,null,null,"月まで",null,null,null,null,null,null,null,9,null,null,null,null,null,null,null,"月",null,null,null,null,null,null,null,null,null,null,null,null,null,null,null,null,null,null,null,null,null,null,null,null,null,null,null,null,null,null,null,null,null,null,null,null,null,null,null,null,"→②欄に記入してください"]
[]
[null,null,null,null,null,"１月１日\n現在の住所",null,null,null,null,null,null,null,null,null,"佐伯市中村南町1番1号"]
[null,null,null,null,null,null,null,null,null,null,null,null,null,null,null,null,null,null,null,null,null,null,null,null,null,null,null,null,null,null,null,null,null,null,null,null,null,null,null,null,null,null,null,null,null,null,null,null,null,null,null,null,null,null,null,null,null,null,null,null,null,null,null,null,null,null,null,null,null,null,null,null,null,null,null,null,null,null,null,null,null,null,null,null,null,null,null,null,null,null,null,null,null,null,null,null,null,null,null,null,null,null,null,null,null,null,null,null,null,null,null,null,null,null,null,null,null,null,null,null,null,null,null,null,null,null,null,null,null,null,null,null,null,null,null,null,null,null,null,null,null,null,null,null,null,null,null,"３．",null,null,null,"普通徴収"]
[]
[]
[null,null,null,null,null,null,null,null,null,null,null,null,null,null,null,null,null,null,null,null,null,null,null,null,null,null,null,null,null,null,null,null,null,null,null,null,null,null,null,null,null,null,null,null,null,null,null,null,null,null,null,null,null,null,null,null,null,null,null,null,null,null,null,null,null,null,null,40000,null,null,null,null,null,null,null,null,null,null,null,null,null,null,80000,null,null,null,null,null,null,null,null,null,null,null,null,null,null,null,30,null,null,null,null,null,null,null,"日",null,null,null,null,null,null,null,null,null,null,null,null,null,null,null,null,null,null,null,null,null,null,null,null,null,null,null,null,null,null,null,null,null,null,null,null,null,null,null,null,null,null,null,null,"（本人納付）"]
[null,null,null,null,null,"異動後の\n住 所",null,null,null,null,null,null,null,null,null,"大分市荷揚町123番98号"]
[]
[null,null,null,null,null,null,null,null,null,null,null,null,null,null,null,null,null,null,null,null,null,null,null,null,null,null,null,null,null,null,null,null,null,null,null,null,null,null,null,null,null,null,null,null,null,null,null,null,null,null,null,null,null,null,null,null,null,null,null,null,null,null,null,null,"円",null,null,null,null,null,null,null,null,null,null,null,null,null,null,"円",null,null,null,null,null,null,null,null,null,null,null,null,null,null,"円",null,null,null,null,null,null,null,null,null,null,null,null,null,null,null,null,null,null,null,null,null,null,null,null,null,null,null,null,null,null,null,null,null,null,null,null,null,null,null,null,null,null,null,null,null,null,null,null,null,null,null,null,"→③欄に記入してください"]
[]
[]
[]
[null,null,"①特別徴収継続の場合"]
[]
[null,null,"（特別徴収義務者）\n新しい勤務先",null,null,null,null,"特別徴収義務者\n指　定　番　号",null,null,null,null,null,null,null,null,null,null,null,null,null,null,null,null,null,null,null,null,null,null,null,null,null,null,null,null,null,null,null,null,null,null,null,null,null,null,null,null,null,null,null,null,null,null,null,"新規",null,null,null,null,null,null,null,null,null,"個人番号\n又は法人番号",null,null,null,null,null,null,null,null,null,null,null,null,null,null,null,null,null,null,null,null,null,null,null,null,null,null,null,null,null,null,null,null,null,null,null,null,null,null,null,null,null,null,null,null,null,null,null,null,null,null,null,null,null,null,null,"新しい勤務先へは、月割額  ",null,null,null,null,null,null,null,null,null,null,null,null,null,null,null,null,null,null,null,null,null,null,null,null,null,null,null,null,null,null,null,null,null,null,null,"円を"]
[]
[]
[null,null,null,null,null,null,null,"所　在　地",null,null,null,null,null,null,null,null,null,null,null,null,null,null,null,"〒",null,null,null,null,null,null,null,null,null,null,null,null,null,null,null,null,null,null,null,null,null,null,null,null,null,null,null,null,null,null,null,null,null,null,null,null,null,null,null,null,null,null,null,null,null,null,null,null,null,null,null,null,null,"担当者連絡先",null,null,"所属",null,null,null,null,null,null,null,null,null,null,null,null,null,null,null,null,null,null,null,null,null,null,null,null,null,null,null,null,null,null,null,null,null,null,null,null,null,null,null,null,null,null,null,null,null,null,"月分（翌月10日納入期限分）から"]
[]
[]
[null,null,null,null,null,null,null,null,null,null,null,null,null,null,null,null,null,null,null,null,null,null,null,null,null,null,null,null,null,null,null,null,null,null,null,null,null,null,null,null,null,null,null,null,null,null,null,null,null,null,null,null,null,null,null,null,null,null,null,null,null,null,null,null,null,null,null,null,null,null,null,null,null,null,null,null,null,null,null,null,null,null,null,null,null,null,null,null,null,null,null,null,null,null,null,null,null,null,null,null,null,null,null,null,null,null,null,null,null,null,null,null,null,null,null,null,null,null,null,null,null,"徴収し、納入するよう連絡済みです。"]
[null,null,null,null,null,null,null,null,null,null,null,null,null,null,null,null,null,null,null,null,null,null,null,null,null,null,null,null,null,null,null,null,null,null,null,null,null,null,null,null,null,null,null,null,null,null,null,null,null,null,null,null,null,null,null,null,null,null,null,null,null,null,null,null,null,null,null,null,null,null,null,null,null,null,null,null,null,null,null,null,"フリガナ"]
[]
[null,null,null,null,null,null,null,"フリガナ",null,null,null,null,null,null,null,null,null,null,null,null,null,null,null,null,null,null,null,null,null,null,null,null,null,null,null,null,null,null,null,null,null,null,null,null,null,null,null,null,null,null,null,null,null,null,null,null,null,null,null,null,null,null,null,null,null,null,null,null,null,null,null,null,null,null,null,null,null,null,null,null,"氏名",null,null,null,null,null,null,null,null,null,null,null,null,null,null,null,null,null,null,null,null,null,null,null,null,null,null,null,null,null,null,null,null,null,null,null,null,null,"受給者番号"]
[]
[null,null,null,null,null,null,null,"氏名又は名称"]
[null,null,null,null,null,null,null,null,null,null,null,null,null,null,null,null,null,null,null,null,null,null,null,null,null,null,null,null,null,null,null,null,null,null,null,null,null,null,null,null,null,null,null,null,null,null,null,null,null,null,null,null,null,null,null,null,null,null,null,null,null,null,null,null,null,null,null,null,null,null,null,null,null,null,null,null,null,null,null,null,null,null,null,null,null,null,null,null,null,null,null,null,null,null,null,null,null,null,null,null,null,null,null,null,null,null,null,null,null,null,null,null,null,null,null,null,null,null,"納入書の要否\n（新規の場合のみ記載）",null,null,null,null,null,null,null,null,null,null,null,null,null,null,null,null,null,null,null,null,null,null,null,null,null,null,null,"１．必要　　２．不要 "]
[null,null,null,null,null,null,null,null,null,null,null,null,null,null,null,null,null,null,null,null,null,null,null,null,null,null,null,null,null,null,null,null,null,null,null,null,null,null,null,null,null,null,null,null,null,null,null,null,null,null,null,null,null,null,null,null,null,null,null,null,null,null,null,null,null,null,null,null,null,null,null,null,null,null,null,null,null,null,null,null,"電話",null,null,null,null,null,null,null,null,null,null,null,null,null,null,null,null,null,null,null,null,null,null,null,null,null,null,"内線(　　　　　)"]
[]
[]
[]
[]
[null,null,"②一括徴収の場合"]
[]
[null,null,"理　由",null,null,null,null,null,null,null,null,"１．異動が令和　8　年12月31日までで、一括徴収の申出があったため",null,null,null,null,null,null,null,null,null,null,null,null,null,null,null,null,null,null,null,null,null,null,null,null,null,null,null,null,null,null,null,null,null,null,null,null,null,null,null,null,null,null,null,null,null,null,null,null,null,null,null,null,null,null,null,null,null,null,null,null,null,null,null,null,null,null,null,"徴収予定月日",null,null,null,null,null,null,null,null,null,null,null,null,null,null,null,null,null,null,null,"徴収予定額\n（上記（ウ）と同額）",null,null,null,null,null,null,null,null,null,null,null,null,null,null,null,null,null,null,null,null,null,null,null,null,null,null,null,null,null,"左記の一括徴収した税額は、"]
[null,null,null,null,null,1]
[]
[null,null,null,null,null,null,null,null,null,null,null,null,null,null,null,null,null,null,null,null,null,null,null,null,null,null,null,null,null,null,null,null,null,null,null,null,null,null,null,null,null,null,null,null,null,null,null,null,null,null,null,null,null,null,null,null,null,null,null,null,null,null,null,null,null,null,null,null,null,null,null,null,null,null,null,null,null,null,null,null,null,null,null,null,null,null,null,null,null,null,null,null,null,null,null,null,null,null,null,null,null,null,null,null,null,null,null,null,null,null,null,null,null,null,null,null,null,null,null,null,null,null,null,null,null,null,null,null,null,10,null,null,null,null,null,"月分（翌月10日納入期限分）で"]
[null,null,null,null,null,null,null,null,null,null,null,"２．異動が令和　　　年１月１日以降で、特別徴収の継続の申出がないため\n　　※１月１日以降に退職される場合は、一括徴収してください。",null,null,null,null,null,null,null,null,null,null,null,null,null,null,null,null,null,null,null,null,null,null,null,null,null,null,null,null,null,null,null,null,null,null,null,null,null,null,null,null,null,null,null,null,null,null,null,null,null,null,null,null,null,null,null,null,null,null,null,null,null,null,null,null,null,null,null,null,9,null,null,null,null,null,null,null,null,20,null,null,null,null,null,null,null,null,null,null,null,80000]
[]
[null,null,null,null,null,null,null,null,null,null,null,null,null,null,null,null,null,null,null,null,null,null,null,null,null,null,null,null,null,null,null,null,null,null,null,null,null,null,null,null,null,null,null,null,null,null,null,null,null,null,null,null,null,null,null,null,null,null,null,null,null,null,null,null,null,null,null,null,null,null,null,null,null,null,null,null,null,null,null,null,null,null,null,null,null,null,null,null,null,null,null,null,null,null,null,null,null,null,null,null,null,null,null,null,null,null,null,null,null,null,null,null,null,null,null,null,null,null,null,null,null,null,null,null,null,null,null,null,null,"納入します。"]
[null,null,null,null,null,null,null,null,null,null,null,null,null,null,null,null,null,null,null,null,null,null,null,null,null,null,null,null,null,null,null,null,null,null,null,null,null,null,null,null,null,null,null,null,null,null,null,null,null,null,null,null,null,null,null,null,null,null,null,null,null,null,null,null,null,null,null,null,null,null,null,null,null,null,null,null,null,null,null,null,null,null,null,null,null,null,"月",null,null,null,null,null,null,null,null,"日",null,null,null,null,null,null,null,null,null,null,null,null,null,null,null,null,null,null,null,null,null,null,null,null,null,null,"円"]
[]
[]
[null,null,"③普通徴収の場合"]
[null,null,null,null,null,null,null,null,null,null,null,null,null,null,null,null,null,null,null,null,null,null,null,null,null,null,null,null,null,null,null,null,null,null,null,null,null,null,null,null,null,null,null,null,null,null,null,null,null,null,null,null,null,null,null,null,null,null,null,null,null,null,null,null,null,null,null,null,null,null,null,null,null,null,null,null,null,null,null,null,null,null,null,null,null,null,null,null,null,null,null,null,null,null,null,null,null,null,null,null,null,null,null,null,null,null,null,null,"　記入欄\n※市町村",null,null,null,null,null,null,null,null,null,null,null,null,null,null,null,null,null,null,null,null,null,null,null,null,null,null,null,null,null,null,null,"入力",null,null,null,null,null,null,null,null,"確認①",null,null,null,null,null,null,null,null,"確認②"]
[null,null,"理　由",null,null,null,null,null,null,null,null,"１．異動が令和　　　年12月31日までで、一括徴収の申出がないため　　※１月１日以降に退職される場合は、一括徴収してください。"]
[]
[]
[null,null,null,null,null,null,null,null,null,null,null,"２．令和　　　年５月31日までに支払われるべき給与又は退職手当等の額が未徴収税額 （ウ） 以下であるため"]
[]
[]
[null,null,null,null,null,null,null,null,null,null,null,"３．死亡による退職であるため"]

{"sheet":"転勤（記載例）","index":3,"n_rows":93,"n_cols":159,"rows_kept":93,"cut":false,"hidden":false,"merged":[[87,158,93,166],[84,2,85,30],[85,140,86,148],[85,149,86,157],[85,158,86,166],[86,11,87,107],[87,5,89,8],[89,11,90,107],[92,11,93,107],[6,33,22,35],[6,36,22,41],[12,121,22,126],[23,2,50,4],[23,97,31,109],[29,117,47,120],[29,121,47,138],[39,51,47,66],[54,2,70,6],[57,77,70,79],[74,2,82,3],[85,108,93,111],[85,112,93,139],[86,2,93,3],[87,140,93,148],[87,149,93,157],[72,2,73,30],[74,11,77,78],[74,79,77,98],[74,99,77,126],[74,129,76,165],[75,5,77,8],[77,129,79,134],[77,135,79,165],[78,11,82,78],[78,80,82,85],[78,89,82,94],[78,101,82,121],[80,129,82,165],[81,86,82,88],[81,95,82,97],[81,122,82,124],[63,7,64,22],[63,23,64,76],[63,80,66,86],[63,87,66,117],[63,118,65,134],[63,135,65,166],[65,7,70,22],[65,23,70,76],[66,118,70,134],[66,146,70,166],[67,80,70,86],[67,87,70,106],[67,107,70,117],[67,136,69,140],[54,121,56,142],[54,143,56,156],[54,157,56,161],[57,7,62,22],[57,23,58,25],[57,26,58,37],[57,80,60,86],[57,87,60,117],[57,121,59,126],[57,127,59,163],[59,23,62,76],[60,121,62,163],[61,80,62,86],[61,87,62,117],[54,91,56,93],[54,94,56,96],[54,97,56,99],[54,100,56,102],[54,103,56,105],[54,106,56,108],[54,109,56,111],[54,112,56,114],[54,115,56,117],[52,2,53,38],[54,7,56,22],[54,23,56,54],[54,55,56,64],[54,65,56,78],[54,79,56,81],[54,82,56,84],[54,85,56,87],[54,88,56,90],[39,75,43,80],[39,83,43,89],[39,90,43,95],[39,98,43,105],[39,106,43,108],[39,147,40,165],[41,5,45,14],[41,15,45,50],[42,147,44,150],[42,151,44,165],[45,67,50,78],[45,82,50,93],[45,98,49,105],[45,106,49,108],[45,151,47,165],[46,5,50,14],[46,15,50,50],[48,64,50,66],[48,79,50,81],[48,94,50,96],[48,117,50,138],[48,147,49,165],[33,90,37,95],[33,98,37,105],[33,106,37,108],[33,147,34,165],[35,5,37,14],[35,15,37,17],[35,18,37,20],[35,21,37,23],[35,24,37,26],[35,27,37,29],[35,30,37,32],[35,33,37,35],[35,36,37,38],[35,39,37,41],[35,42,37,44],[35,45,37,47],[35,48,37,50],[36,110,41,116],[36,140,41,146],[36,147,38,150],[36,151,38,165],[38,5,40,14],[38,15,40,50],[39,68,43,74],[32,21,34,27],[32,28,34,30],[32,31,34,37],[32,38,34,40],[32,41,34,47],[32,48,34,50],[33,68,37,74],[33,75,37,80],[33,83,37,89],[19,97,22,99],[19,100,22,120],[20,127,22,134],[20,135,22,154],[20,155,22,166],[23,5,25,14],[23,15,25,50],[23,51,26,66],[23,67,26,81],[23,82,26,96],[23,110,28,139],[23,140,25,166],[26,5,31,14],[26,15,31,50],[26,140,28,166],[27,51,31,66],[27,67,31,81],[27,82,31,96],[30,147,32,150],[30,151,32,165],[31,111,34,115],[31,141,34,145],[32,5,34,14],[32,15,34,20],[19,70,22,72],[19,73,22,75],[19,76,22,78],[19,79,22,81],[19,82,22,84],[19,85,22,87],[19,88,22,90],[19,91,22,93],[19,94,22,96],[10,2,12,8],[12,42,13,60],[12,61,13,120],[12,127,14,134],[12,135,14,166],[13,3,16,22],[14,42,18,60],[14,61,18,120],[15,127,16,134],[15,135,16,166],[17,127,19,134],[17,135,19,166],[18,2,20,6],[18,7,20,10],[18,11,20,13],[18,14,20,17],[18,18,20,20],[18,21,20,24],[18,25,20,27],[18,28,20,32],[19,42,22,60],[19,61,22,63],[19,64,22,66],[19,67,22,69],[1,32,5,53],[1,54,5,99],[2,111,5,120],[2,121,5,166],[6,42,11,60],[6,61,7,63],[6,64,7,75],[6,121,11,134],[6,135,11,166],[8,61,11,120]]}
[]
[null,null,null,null,null,null,null,null,null,null,null,null,null,null,null,null,null,null,null,null,null,null,null,null,null,null,null,null,null,null,null,null,"給与支払報告\n特別徴収",null,null,null,null,null,null,null,null,null,null,null,null,null,null,null,null,null,null,null,null,null,"に係る給与所得者異動届出書"]
[null,null,null,null,null,null,null,null,null,null,null,null,null,null,null,null,null,null,null,null,null,null,null,null,null,null,null,null,null,null,null,null,null,null,null,null,null,null,null,null,null,null,null,null,null,null,null,null,null,null,null,null,null,null,null,null,null,null,null,null,null,null,null,null,null,null,null,null,null,null,null,null,null,null,null,null,null,null,null,null,null,null,null,null,null,null,null,null,null,null,null,null,null,null,null,null,null,null,null,null,null,null,null,null,null,null,null,null,null,null,null,"年 度",null,null,null,null,null,null,null,null,null,"１．　現年度　　　　２．　新年度　　　　３．　両年度"]
[]
[]
[]
[null,null,null,null,null,null,null,null,null,null,null,null,null,null,null,null,null,null,null,null,null,null,null,null,null,null,null,null,null,null,null,null,null,"給与支払者",null,null,"義務者\n特別徴収",null,null,null,null,null,"所　在　地",null,null,null,null,null,null,null,null,null,null,null,null,null,null,null,null,null,null,"〒",null,null,"876-0000",null,null,null,null,null,null,null,null,null,null,null,null,null,null,null,null,null,null,null,null,null,null,null,null,null,null,null,null,null,null,null,null,null,null,null,null,null,null,null,null,null,null,null,null,null,null,null,null,null,null,null,null,null,null,null,null,"特別徴収義務者\n指　定　番　号",null,null,null,null,null,null,null,null,null,null,null,null,null,90009999]
[]
[null,null,null,null,null,null,null,null,null,null,null,null,null,null,null,null,null,null,null,null,null,null,null,null,null,null,null,null,null,null,null,null,null,null,null,null,null,null,null,null,null,null,null,null,null,null,null,null,null,null,null,null,null,null,null,null,null,null,null,null,null,"佐伯市中村南町99番1号"]
[]
[null,null,"（宛先）"]
[]
[null,null,null,null,null,null,null,null,null,null,null,null,null,null,null,null,null,null,null,null,null,null,null,null,null,null,null,null,null,null,null,null,null,null,null,null,null,null,null,null,null,null,"フリガナ",null,null,null,null,null,null,null,null,null,null,null,null,null,null,null,null,null,null,"カブシキガイシャ　サイキショウジ",null,null,null,null,null,null,null,null,null,null,null,null,null,null,null,null,null,null,null,null,null,null,null,null,null,null,null,null,null,null,null,null,null,null,null,null,null,null,null,null,null,null,null,null,null,null,null,null,null,null,null,null,null,null,null,null,null,null,null,"連絡先\n担当者",null,null,null,null,null,"所 属",null,null,null,null,null,null,null,"総務課"]
[null,null,null,"佐 伯 市 長"]
[null,null,null,null,null,null,null,null,null,null,null,null,null,null,null,null,null,null,null,null,null,null,null,null,null,null,null,null,null,null,null,null,null,null,null,null,null,null,null,null,null,null,"氏名又は名称",null,null,null,null,null,null,null,null,null,null,null,null,null,null,null,null,null,null,"株式会社　佐伯商事"]
[null,null,null,null,null,null,null,null,null,null,null,null,null,null,null,null,null,null,null,null,null,null,null,null,null,null,null,null,null,null,null,null,null,null,null,null,null,null,null,null,null,null,null,null,null,null,null,null,null,null,null,null,null,null,null,null,null,null,null,null,null,null,null,null,null,null,null,null,null,null,null,null,null,null,null,null,null,null,null,null,null,null,null,null,null,null,null,null,null,null,null,null,null,null,null,null,null,null,null,null,null,null,null,null,null,null,null,null,null,null,null,null,null,null,null,null,null,null,null,null,null,null,null,null,null,null,null,"フリガナ",null,null,null,null,null,null,null,"カミウラ　ヨシコ"]
[]
[null,null,null,null,null,null,null,null,null,null,null,null,null,null,null,null,null,null,null,null,null,null,null,null,null,null,null,null,null,null,null,null,null,null,null,null,null,null,null,null,null,null,null,null,null,null,null,null,null,null,null,null,null,null,null,null,null,null,null,null,null,null,null,null,null,null,null,null,null,null,null,null,null,null,null,null,null,null,null,null,null,null,null,null,null,null,null,null,null,null,null,null,null,null,null,null,null,null,null,null,null,null,null,null,null,null,null,null,null,null,null,null,null,null,null,null,null,null,null,null,null,null,null,null,null,null,null,"氏 名",null,null,null,null,null,null,null,"上浦　好子"]
[null,null,"令和",null,null,null,null,8,null,null,null,"年",null,null,10,null,null,null,"月",null,null,10,null,null,null,"日",null,null,"提出"]
[null,null,null,null,null,null,null,null,null,null,null,null,null,null,null,null,null,null,null,null,null,null,null,null,null,null,null,null,null,null,null,null,null,null,null,null,null,null,null,null,null,null,"個人番号\n又は法人番号",null,null,null,null,null,null,null,null,null,null,null,null,null,null,null,null,null,null,1,null,null,2,null,null,3,null,null,4,null,null,5,null,null,6,null,null,7,null,null,8,null,null,9,null,null,0,null,null,1,null,null,2,null,null,3,null,null," ←個人番号の記載に当たっては、\n左端を空欄とし右詰めで記載"]
[null,null,null,null,null,null,null,null,null,null,null,null,null,null,null,null,null,null,null,null,null,null,null,null,null,null,null,null,null,null,null,null,null,null,null,null,null,null,null,null,null,null,null,null,null,null,null,null,null,null,null,null,null,null,null,null,null,null,null,null,null,null,null,null,null,null,null,null,null,null,null,null,null,null,null,null,null,null,null,null,null,null,null,null,null,null,null,null,null,null,null,null,null,null,null,null,null,null,null,null,null,null,null,null,null,null,null,null,null,null,null,null,null,null,null,null,null,null,null,null,null,null,null,null,null,null,null,"電 話",null,null,null,null,null,null,null,"0972-22-3111",null,null,null,null,null,null,null,null,null,null,null,null,null,null,null,null,null,null,null,"内線(　1234　)"]
[]
[]
[null,null,"給　与　所　得　者",null,null,"フリガナ",null,null,null,null,null,null,null,null,null,"サイキ　タロウ",null,null,null,null,null,null,null,null,null,null,null,null,null,null,null,null,null,null,null,null,null,null,null,null,null,null,null,null,null,null,null,null,null,null,null,"（ア）",null,null,null,null,null,null,null,null,null,null,null,null,null,null,null,"（イ）",null,null,null,null,null,null,null,null,null,null,null,null,null,null,"（ウ）",null,null,null,null,null,null,null,null,null,null,null,null,null,null,"異  　動\n年 月 日",null,null,null,null,null,null,null,null,null,null,null,null,"異　動　の　事　由",null,null,null,null,null,null,null,null,null,null,null,null,null,null,null,null,null,null,null,null,null,null,null,null,null,null,null,null,null,"異動後の未徴収"]
[]
[]
[null,null,null,null,null,"氏　名",null,null,null,null,null,null,null,null,null,"佐伯　太郎",null,null,null,null,null,null,null,null,null,null,null,null,null,null,null,null,null,null,null,null,null,null,null,null,null,null,null,null,null,null,null,null,null,null,null,null,null,null,null,null,null,null,null,null,null,null,null,null,null,null,null,null,null,null,null,null,null,null,null,null,null,null,null,null,null,null,null,null,null,null,null,null,null,null,null,null,null,null,null,null,null,null,null,null,null,null,null,null,null,null,null,null,null,null,null,null,null,null,null,null,null,null,null,null,null,null,null,null,null,null,null,null,null,null,null,null,null,null,null,null,null,null,null,null,"税額の徴収方法"]
[null,null,null,null,null,null,null,null,null,null,null,null,null,null,null,null,null,null,null,null,null,null,null,null,null,null,null,null,null,null,null,null,null,null,null,null,null,null,null,null,null,null,null,null,null,null,null,null,null,null,null,"特別徴収税額\n（年税額）",null,null,null,null,null,null,null,null,null,null,null,null,null,null,null,"徴収済額",null,null,null,null,null,null,null,null,null,null,null,null,null,null,"未徴収税額\n（ア）－（イ）"]
[]
[null,null,null,null,null,null,null,null,null,null,null,null,null,null,null,null,null,null,null,null,null,null,null,null,null,null,null,null,null,null,null,null,null,null,null,null,null,null,null,null,null,null,null,null,null,null,null,null,null,null,null,null,null,null,null,null,null,null,null,null,null,null,null,null,null,null,null,null,null,null,null,null,null,null,null,null,null,null,null,null,null,null,null,null,null,null,null,null,null,null,null,null,null,null,null,null,null,null,null,null,null,null,null,null,null,null,null,null,null,null,null,null,null,null,null,null,null,"１．\n２．\n３．\n４．\n５．\n６．\n７．\n８．",null,null,null,"退職\n転勤\n休職・長欠\n死亡\n支払少額・不定期\n合併・解散\n事業所変更\nその他"]
[null,null,null,null,null,null,null,null,null,null,null,null,null,null,null,null,null,null,null,null,null,null,null,null,null,null,null,null,null,null,null,null,null,null,null,null,null,null,null,null,null,null,null,null,null,null,null,null,null,null,null,null,null,null,null,null,null,null,null,null,null,null,null,null,null,null,null,null,null,null,null,null,null,null,null,null,null,null,null,null,null,null,null,null,null,null,null,null,null,null,null,null,null,null,null,null,null,null,null,null,null,null,null,null,null,null,null,null,null,null,null,null,null,null,null,null,null,null,null,null,null,null,null,null,null,null,null,null,null,null,null,null,null,null,null,null,null,null,null,null,null,null,null,null,null,null,null,"１．",null,null,null,"特別徴収継続"]
[null,null,null,null,null,null,null,null,null,null,null,null,null,null,null,null,null,null,null,null,null,null,null,null,null,null,null,null,null,null,null,null,null,null,null,null,null,null,null,null,null,null,null,null,null,null,null,null,null,null,null,null,null,null,null,null,null,null,null,null,null,null,null,null,null,null,null,null,null,null,null,null,null,null,null,null,null,null,null,null,null,null,null,null,null,null,null,null,null,null,null,null,null,null,null,null,null,null,null,null,null,null,null,null,null,null,null,null,null,null,null,1,null,null,null,null,null,null,null,null,null,null,null,null,null,null,null,null,null,null,null,null,null,null,null,null,null,null,null,null,null,1]
[null,null,null,null,null,"生年月日",null,null,null,null,null,null,null,null,null,"昭和",null,null,null,null,null,40,null,null,null,null,null,null,"年",null,null,1,null,null,null,null,null,null,"月",null,null,15,null,null,null,null,null,null,"日"]
[null,null,null,null,null,null,null,null,null,null,null,null,null,null,null,null,null,null,null,null,null,null,null,null,null,null,null,null,null,null,null,null,null,null,null,null,null,null,null,null,null,null,null,null,null,null,null,null,null,null,null,null,null,null,null,null,null,null,null,null,null,null,null,null,null,null,null,null,6,null,null,null,null,null,null,"月から",null,null,null,null,null,null,null,10,null,null,null,null,null,null,"月から",null,null,null,null,null,null,null,8,null,null,null,null,null,null,null,"年",null,null,null,null,null,null,null,null,null,null,null,null,null,null,null,null,null,null,null,null,null,null,null,null,null,null,null,null,null,null,null,null,null,null,null,null,null,null,null,null,"→①欄に記入してください"]
[]
[null,null,null,null,null,"個人番号",null,null,null,null,null,null,null,null,null,9,null,null,8,null,null,7,null,null,6,null,null,5,null,null,4,null,null,3,null,null,2,null,null,1,null,null,0,null,null,9,null,null,8]
[null,null,null,null,null,null,null,null,null,null,null,null,null,null,null,null,null,null,null,null,null,null,null,null,null,null,null,null,null,null,null,null,null,null,null,null,null,null,null,null,null,null,null,null,null,null,null,null,null,null,null,null,null,null,null,null,null,null,null,null,null,null,null,null,null,null,null,null,null,null,null,null,null,null,null,null,null,null,null,null,null,null,null,null,null,null,null,null,null,null,null,null,null,null,null,null,null,null,null,null,null,null,null,null,null,null,null,null,null,null,"右から\n番号を\n記入",null,null,null,null,null,null,null,null,null,null,null,null,null,null,null,null,null,null,null,null,null,null,null,null,null,null,null,null,null,"右から\n番号を\n記入",null,null,null,null,null,null,"２．",null,null,null,"一括徴収"]
[]
[null,null,null,null,null,"受給者番号",null,null,null,null,null,null,null,null,null,"A－001"]
[null,null,null,null,null,null,null,null,null,null,null,null,null,null,null,null,null,null,null,null,null,null,null,null,null,null,null,null,null,null,null,null,null,null,null,null,null,null,null,null,null,null,null,null,null,null,null,null,null,null,null,120000,null,null,null,null,null,null,null,null,null,null,null,null,null,null,null,null,9,null,null,null,null,null,null,"月まで",null,null,null,null,null,null,null,5,null,null,null,null,null,null,"月まで",null,null,null,null,null,null,null,9,null,null,null,null,null,null,null,"月",null,null,null,null,null,null,null,null,null,null,null,null,null,null,null,null,null,null,null,null,null,null,null,null,null,null,null,null,null,null,null,null,null,null,null,null,null,null,null,null,"→②欄に記入してください"]
[]
[null,null,null,null,null,"１月１日\n現在の住所",null,null,null,null,null,null,null,null,null,"佐伯市中村南町1番1号"]
[null,null,null,null,null,null,null,null,null,null,null,null,null,null,null,null,null,null,null,null,null,null,null,null,null,null,null,null,null,null,null,null,null,null,null,null,null,null,null,null,null,null,null,null,null,null,null,null,null,null,null,null,null,null,null,null,null,null,null,null,null,null,null,null,null,null,null,null,null,null,null,null,null,null,null,null,null,null,null,null,null,null,null,null,null,null,null,null,null,null,null,null,null,null,null,null,null,null,null,null,null,null,null,null,null,null,null,null,null,null,null,null,null,null,null,null,null,null,null,null,null,null,null,null,null,null,null,null,null,null,null,null,null,null,null,null,null,null,null,null,null,null,null,null,null,null,null,"３．",null,null,null,"普通徴収"]
[]
[]
[null,null,null,null,null,null,null,null,null,null,null,null,null,null,null,null,null,null,null,null,null,null,null,null,null,null,null,null,null,null,null,null,null,null,null,null,null,null,null,null,null,null,null,null,null,null,null,null,null,null,null,null,null,null,null,null,null,null,null,null,null,null,null,null,null,null,null,40000,null,null,null,null,null,null,null,null,null,null,null,null,null,null,80000,null,null,null,null,null,null,null,null,null,null,null,null,null,null,null,30,null,null,null,null,null,null,null,"日",null,null,null,null,null,null,null,null,null,null,null,null,null,null,null,null,null,null,null,null,null,null,null,null,null,null,null,null,null,null,null,null,null,null,null,null,null,null,null,null,null,null,null,null,"（本人納付）"]
[null,null,null,null,null,"異動後の\n住 所"]
[]
[null,null,null,null,null,null,null,null,null,null,null,null,null,null,null,null,null,null,null,null,null,null,null,null,null,null,null,null,null,null,null,null,null,null,null,null,null,null,null,null,null,null,null,null,null,null,null,null,null,null,null,null,null,null,null,null,null,null,null,null,null,null,null,null,"円",null,null,null,null,null,null,null,null,null,null,null,null,null,null,"円",null,null,null,null,null,null,null,null,null,null,null,null,null,null,"円",null,null,null,null,null,null,null,null,null,null,null,null,null,null,null,null,null,null,null,null,null,null,null,null,null,null,null,null,null,null,null,null,null,null,null,null,null,null,null,null,null,null,null,null,null,null,null,null,null,null,null,null,"→③欄に記入してください"]
[]
[]
[]
[null,null,"①特別徴収継続の場合"]
[]
[null,null,"（特別徴収義務者）\n新しい勤務先",null,null,null,null,"特別徴収義務者\n指　定　番　号",null,null,null,null,null,null,null,null,null,null,null,null,null,null,null,80001234,null,null,null,null,null,null,null,null,null,null,null,null,null,null,null,null,null,null,null,null,null,null,null,null,null,null,null,null,null,null,null,"新規",null,null,null,null,null,null,null,null,null,"個人番号\n又は法人番号",null,null,null,null,null,null,null,null,null,null,null,null,null,2,null,null,4,null,null,6,null,null,8,null,null,0,null,null,1,null,null,3,null,null,5,null,null,7,null,null,9,null,null,1,null,null,2,null,null,3,null,null,null,null,null,"新しい勤務先へは、月割額  ",null,null,null,null,null,null,null,null,null,null,null,null,null,null,null,null,null,null,null,null,null,10000,null,null,null,null,null,null,null,null,null,null,null,null,null,"円を"]
[]
[]
[null,null,null,null,null,null,null,"所　在　地",null,null,null,null,null,null,null,null,null,null,null,null,null,null,null,"〒",null,null,"876-1234",null,null,null,null,null,null,null,null,null,null,null,null,null,null,null,null,null,null,null,null,null,null,null,null,null,null,null,null,null,null,null,null,null,null,null,null,null,null,null,null,null,null,null,null,null,null,null,null,null,null,"担当者連絡先",null,null,"所属",null,null,null,null,null,null,"経理課",null,null,null,null,null,null,null,null,null,null,null,null,null,null,null,null,null,null,null,null,null,null,null,null,null,null,null,null,null,null,null,null,null,10,null,null,null,null,null,"月分（翌月10日納入期限分）から"]
[]
[null,null,null,null,null,null,null,null,null,null,null,null,null,null,null,null,null,null,null,null,null,null,null,"佐伯市中村北町100番99号"]
[null,null,null,null,null,null,null,null,null,null,null,null,null,null,null,null,null,null,null,null,null,null,null,null,null,null,null,null,null,null,null,null,null,null,null,null,null,null,null,null,null,null,null,null,null,null,null,null,null,null,null,null,null,null,null,null,null,null,null,null,null,null,null,null,null,null,null,null,null,null,null,null,null,null,null,null,null,null,null,null,null,null,null,null,null,null,null,null,null,null,null,null,null,null,null,null,null,null,null,null,null,null,null,null,null,null,null,null,null,null,null,null,null,null,null,null,null,null,null,null,null,"徴収し、納入するよう連絡済みです。"]
[null,null,null,null,null,null,null,null,null,null,null,null,null,null,null,null,null,null,null,null,null,null,null,null,null,null,null,null,null,null,null,null,null,null,null,null,null,null,null,null,null,null,null,null,null,null,null,null,null,null,null,null,null,null,null,null,null,null,null,null,null,null,null,null,null,null,null,null,null,null,null,null,null,null,null,null,null,null,null,null,"フリガナ",null,null,null,null,null,null,"ナオカワ　ジロウ"]
[]
[null,null,null,null,null,null,null,"フリガナ",null,null,null,null,null,null,null,null,null,null,null,null,null,null,null,"ユウゲンガイシャ　サイキショウテン",null,null,null,null,null,null,null,null,null,null,null,null,null,null,null,null,null,null,null,null,null,null,null,null,null,null,null,null,null,null,null,null,null,null,null,null,null,null,null,null,null,null,null,null,null,null,null,null,null,null,null,null,null,null,null,null,"氏名",null,null,null,null,null,null,"直川　次郎",null,null,null,null,null,null,null,null,null,null,null,null,null,null,null,null,null,null,null,null,null,null,null,null,null,null,null,null,null,null,"受給者番号",null,null,null,null,null,null,null,null,null,null,null,null,null,null,null,null,123]
[]
[null,null,null,null,null,null,null,"氏名又は名称",null,null,null,null,null,null,null,null,null,null,null,null,null,null,null,"有限会社　さいき商店"]
[null,null,null,null,null,null,null,null,null,null,null,null,null,null,null,null,null,null,null,null,null,null,null,null,null,null,null,null,null,null,null,null,null,null,null,null,null,null,null,null,null,null,null,null,null,null,null,null,null,null,null,null,null,null,null,null,null,null,null,null,null,null,null,null,null,null,null,null,null,null,null,null,null,null,null,null,null,null,null,null,null,null,null,null,null,null,null,null,null,null,null,null,null,null,null,null,null,null,null,null,null,null,null,null,null,null,null,null,null,null,null,null,null,null,null,null,null,null,"納入書の要否\n（新規の場合のみ記載）",null,null,null,null,null,null,null,null,null,null,null,null,null,null,null,null,null,null,null,null,null,null,null,null,null,null,null,"１．必要　　２．不要 "]
[null,null,null,null,null,null,null,null,null,null,null,null,null,null,null,null,null,null,null,null,null,null,null,null,null,null,null,null,null,null,null,null,null,null,null,null,null,null,null,null,null,null,null,null,null,null,null,null,null,null,null,null,null,null,null,null,null,null,null,null,null,null,null,null,null,null,null,null,null,null,null,null,null,null,null,null,null,null,null,null,"電話",null,null,null,null,null,null,"090-1234-5678",null,null,null,null,null,null,null,null,null,null,null,null,null,null,null,null,null,null,null,"内線(　　　　　)",null,null,null,null,null,null,null,null,null,null,null,null,null,null,null,null,null,null,null,null,null,null,null,null,null,null,null,null,1]
[]
[]
[]
[]
[null,null,"②一括徴収の場合"]
[]
[null,null,"理　由",null,null,null,null,null,null,null,null,"１．異動が令和　　　年12月31日までで、一括徴収の申出があったため",null,null,null,null,null,null,null,null,null,null,null,null,null,null,null,null,null,null,null,null,null,null,null,null,null,null,null,null,null,null,null,null,null,null,null,null,null,null,null,null,null,null,null,null,null,null,null,null,null,null,null,null,null,null,null,null,null,null,null,null,null,null,null,null,null,null,null,"徴収予定月日",null,null,null,null,null,null,null,null,null,null,null,null,null,null,null,null,null,null,null,"徴収予定額\n（上記（ウ）と同額）",null,null,null,null,null,null,null,null,null,null,null,null,null,null,null,null,null,null,null,null,null,null,null,null,null,null,null,null,null,"左記の一括徴収した税額は、"]
[]
[]
[null,null,null,null,null,null,null,null,null,null,null,null,null,null,null,null,null,null,null,null,null,null,null,null,null,null,null,null,null,null,null,null,null,null,null,null,null,null,null,null,null,null,null,null,null,null,null,null,null,null,null,null,null,null,null,null,null,null,null,null,null,null,null,null,null,null,null,null,null,null,null,null,null,null,null,null,null,null,null,null,null,null,null,null,null,null,null,null,null,null,null,null,null,null,null,null,null,null,null,null,null,null,null,null,null,null,null,null,null,null,null,null,null,null,null,null,null,null,null,null,null,null,null,null,null,null,null,null,null,null,null,null,null,null,null,"月分（翌月10日納入期限分）で"]
[null,null,null,null,null,null,null,null,null,null,null,"２．異動が令和　　　年１月１日以降で、特別徴収の継続の申出がないため\n　　※１月１日以降に退職される場合は、一括徴収してください。"]
[]
[null,null,null,null,null,null,null,null,null,null,null,null,null,null,null,null,null,null,null,null,null,null,null,null,null,null,null,null,null,null,null,null,null,null,null,null,null,null,null,null,null,null,null,null,null,null,null,null,null,null,null,null,null,null,null,null,null,null,null,null,null,null,null,null,null,null,null,null,null,null,null,null,null,null,null,null,null,null,null,null,null,null,null,null,null,null,null,null,null,null,null,null,null,null,null,null,null,null,null,null,null,null,null,null,null,null,null,null,null,null,null,null,null,null,null,null,null,null,null,null,null,null,null,null,null,null,null,null,null,"納入します。"]
[null,null,null,null,null,null,null,null,null,null,null,null,null,null,null,null,null,null,null,null,null,null,null,null,null,null,null,null,null,null,null,null,null,null,null,null,null,null,null,null,null,null,null,null,null,null,null,null,null,null,null,null,null,null,null,null,null,null,null,null,null,null,null,null,null,null,null,null,null,null,null,null,null,null,null,null,null,null,null,null,null,null,null,null,null,null,"月",null,null,null,null,null,null,null,null,"日",null,null,null,null,null,null,null,null,null,null,null,null,null,null,null,null,null,null,null,null,null,null,null,null,null,null,"円"]
[]
[]
[null,null,"③普通徴収の場合"]
[null,null,null,null,null,null,null,null,null,null,null,null,null,null,null,null,null,null,null,null,null,null,null,null,null,null,null,null,null,null,null,null,null,null,null,null,null,null,null,null,null,null,null,null,null,null,null,null,null,null,null,null,null,null,null,null,null,null,null,null,null,null,null,null,null,null,null,null,null,null,null,null,null,null,null,null,null,null,null,null,null,null,null,null,null,null,null,null,null,null,null,null,null,null,null,null,null,null,null,null,null,null,null,null,null,null,null,null,"　記入欄\n※市町村",null,null,null,null,null,null,null,null,null,null,null,null,null,null,null,null,null,null,null,null,null,null,null,null,null,null,null,null,null,null,null,"入力",null,null,null,null,null,null,null,null,"確認①",null,null,null,null,null,null,null,null,"確認②"]
[null,null,"理　由",null,null,null,null,null,null,null,null,"１．異動が令和　　　年12月31日までで、一括徴収の申出がないため　　※１月１日以降に退職される場合は、一括徴収してください。"]
[]
[]
[null,null,null,null,null,null,null,null,null,null,null,"２．令和　　　年５月31日までに支払われるべき給与又は退職手当等の額が未徴収税額 （ウ） 以下であるため"]
[]
[]
[null,null,null,null,null,null,null,null,null,null,null,"３．死亡による退職であるため"]

{"sheet":"　","index":4,"n_rows":0,"n_cols":0,"rows_kept":0,"cut":false,"hidden":false,"merged":[]}

{"sheet":"異動届出書（リスト印刷用）","index":5,"n_rows":93,"n_cols":173,"rows_kept":93,"cut":false,"hidden":false,"merged":[[92,11,93,107],[6,33,22,35],[6,36,22,41],[12,121,22,126],[23,2,50,4],[23,97,31,109],[29,117,47,120],[29,121,47,138],[31,172,38,184],[39,51,47,66],[44,172,51,184],[54,2,70,6],[57,77,70,79],[74,2,82,3],[85,108,93,111],[85,112,93,139],[86,2,93,3],[87,140,93,148],[87,149,93,157],[87,158,93,166],[84,2,85,30],[85,140,86,148],[85,149,86,157],[85,158,86,166],[86,11,87,22],[86,23,87,26],[86,27,87,107],[87,5,89,8],[89,11,90,17],[89,18,90,21],[89,22,90,107],[72,2,73,30],[74,11,77,22],[74,23,77,26],[74,27,77,78],[74,79,77,98],[74,99,77,126],[74,129,76,165],[75,5,77,8],[77,129,79,134],[77,135,79,165],[78,11,82,22],[78,23,82,26],[78,27,82,78],[78,80,82,97],[78,101,82,121],[80,129,82,165],[81,122,82,124],[63,7,64,22],[63,23,64,76],[63,80,66,86],[63,87,66,117],[63,118,65,134],[63,135,65,166],[65,7,70,22],[65,23,70,76],[66,118,70,134],[66,146,70,166],[67,80,70,86],[67,87,70,106],[67,107,70,117],[67,136,69,140],[57,7,62,22],[57,23,58,25],[57,26,58,43],[57,80,60,86],[57,87,60,117],[57,121,59,126],[57,127,59,163],[59,23,62,76],[60,121,62,163],[61,80,62,86],[61,87,62,117],[52,2,53,38],[54,7,56,22],[54,23,56,54],[54,55,56,64],[54,65,56,78],[54,79,56,117],[54,121,56,142],[54,143,56,156],[54,157,56,161],[39,172,43,184],[41,5,45,14],[41,15,45,50],[42,147,44,150],[42,151,44,165],[45,67,50,78],[45,82,50,93],[45,98,49,105],[45,106,49,108],[45,151,47,165],[46,5,50,14],[46,15,50,50],[48,64,50,66],[48,79,50,81],[48,94,50,96],[48,117,50,138],[48,147,49,165],[33,147,34,165],[35,5,37,14],[35,15,37,50],[36,110,41,116],[36,140,41,146],[36,147,38,150],[36,151,38,165],[38,5,40,14],[38,15,40,50],[39,68,43,74],[39,75,43,80],[39,83,43,89],[39,90,43,95],[39,98,43,105],[39,106,43,108],[39,147,40,165],[31,141,34,145],[32,5,34,14],[32,15,34,50],[33,68,37,74],[33,75,37,80],[33,83,37,89],[33,90,37,95],[33,98,37,105],[33,106,37,108],[19,88,22,90],[19,91,22,93],[19,94,22,96],[19,97,22,99],[19,100,22,120],[20,127,22,134],[20,135,22,154],[20,155,22,166],[23,5,25,14],[23,15,25,50],[23,51,26,66],[23,67,26,81],[23,82,26,96],[23,110,28,139],[23,140,25,166],[26,5,31,14],[26,15,31,50],[26,140,28,166],[27,51,31,66],[27,67,31,81],[27,82,31,96],[30,147,32,150],[30,151,32,165],[31,111,34,115],[10,2,12,8],[12,42,13,60],[12,61,13,120],[12,127,14,134],[12,135,14,166],[13,3,16,22],[14,42,18,60],[14,61,18,120],[15,127,16,134],[15,135,16,166],[17,127,19,134],[17,135,19,166],[18,2,20,27],[18,28,20,32],[19,42,22,60],[19,61,22,63],[19,64,22,66],[19,67,22,69],[19,70,22,72],[19,73,22,75],[19,76,22,78],[19,79,22,81],[19,82,22,84],[19,85,22,87],[1,32,5,53],[1,54,5,99],[2,135,5,144],[2,145,5,166],[6,42,11,60],[6,61,7,63],[6,64,7,80],[6,121,11,134],[6,135,11,166],[8,61,11,120]]}
[]
[null,null,null,null,null,null,null,null,null,null,null,null,null,null,null,null,null,null,null,null,null,null,null,null,null,null,null,null,null,null,null,null,"給与支払報告\n特別徴収",null,null,null,null,null,null,null,null,null,null,null,null,null,null,null,null,null,null,null,null,null,"に係る給与所得者異動届出書"]
[null,null,null,null,null,null,null,null,null,null,null,null,null,null,null,null,null,null,null,null,null,null,null,null,null,null,null,null,null,null,null,null,null,null,null,null,null,null,null,null,null,null,null,null,null,null,null,null,null,null,null,null,null,null,null,null,null,null,null,null,null,null,null,null,null,null,null,null,null,null,null,null,null,null,null,null,null,null,null,null,null,null,null,null,null,null,null,null,null,null,null,null,null,null,null,null,null,null,null,null,null,null,null,null,null,null,null,null,null,null,null,null,null,null,null,null,null,null,null,null,null,null,null,null,null,null,null,null,null,null,null,null,null,null,null,"年 度",null,null,null,null,null,null,null,null,null,{"$f":"IF(IFERROR(VLOOKUP($FQ$32,入力リスト!A:AR,44,FALSE),0)=0,\"\",VLOOKUP($FQ$32,入力リスト!A:AR,44,FALSE))","v":""}]
[]
[]
[]
[null,null,null,null,null,null,null,null,null,null,null,null,null,null,null,null,null,null,null,null,null,null,null,null,null,null,null,null,null,null,null,null,null,"給与支払者",null,null,"義務者\n特別徴収",null,null,null,null,null,"所　在　地",null,null,null,null,null,null,null,null,null,null,null,null,null,null,null,null,null,null,"〒",null,null,null,null,null,null,null,null,null,null,null,null,null,null,null,null,null,null,null,null,null,null,null,null,null,null,null,null,null,null,null,null,null,null,null,null,null,null,null,null,null,null,null,null,null,null,null,null,null,null,null,null,null,null,null,null,null,null,null,"特別徴収義務者\n指　定　番　号"]
[]
[]
[]
[null,null,"（宛先）"]
[]
[null,null,null,null,null,null,null,null,null,null,null,null,null,null,null,null,null,null,null,null,null,null,null,null,null,null,null,null,null,null,null,null,null,null,null,null,null,null,null,null,null,null,"フリガナ",null,null,null,null,null,null,null,null,null,null,null,null,null,null,null,null,null,null,null,null,null,null,null,null,null,null,null,null,null,null,null,null,null,null,null,null,null,null,null,null,null,null,null,null,null,null,null,null,null,null,null,null,null,null,null,null,null,null,null,null,null,null,null,null,null,null,null,null,null,null,null,null,null,null,null,null,null,null,"連絡先\n担当者",null,null,null,null,null,"所 属"]
[null,null,null,"佐 伯 市 長"]
[null,null,null,null,null,null,null,null,null,null,null,null,null,null,null,null,null,null,null,null,null,null,null,null,null,null,null,null,null,null,null,null,null,null,null,null,null,null,null,null,null,null,"氏名又は名称"]
[null,null,null,null,null,null,null,null,null,null,null,null,null,null,null,null,null,null,null,null,null,null,null,null,null,null,null,null,null,null,null,null,null,null,null,null,null,null,null,null,null,null,null,null,null,null,null,null,null,null,null,null,null,null,null,null,null,null,null,null,null,null,null,null,null,null,null,null,null,null,null,null,null,null,null,null,null,null,null,null,null,null,null,null,null,null,null,null,null,null,null,null,null,null,null,null,null,null,null,null,null,null,null,null,null,null,null,null,null,null,null,null,null,null,null,null,null,null,null,null,null,null,null,null,null,null,null,"フリガナ"]
[]
[null,null,null,null,null,null,null,null,null,null,null,null,null,null,null,null,null,null,null,null,null,null,null,null,null,null,null,null,null,null,null,null,null,null,null,null,null,null,null,null,null,null,null,null,null,null,null,null,null,null,null,null,null,null,null,null,null,null,null,null,null,null,null,null,null,null,null,null,null,null,null,null,null,null,null,null,null,null,null,null,null,null,null,null,null,null,null,null,null,null,null,null,null,null,null,null,null,null,null,null,null,null,null,null,null,null,null,null,null,null,null,null,null,null,null,null,null,null,null,null,null,null,null,null,null,null,null,"氏 名"]
[null,null,{"$f":"IF(IFERROR(VLOOKUP($FQ$32,入力リスト!A:AR,43,FALSE),0)=0,\"\",VLOOKUP($FQ$32,入力リスト!A:AR,43,FALSE))","v":""},null,null,null,null,null,null,null,null,null,null,null,null,null,null,null,null,null,null,null,null,null,null,null,null,null,"提出"]
[null,null,null,null,null,null,null,null,null,null,null,null,null,null,null,null,null,null,null,null,null,null,null,null,null,null,null,null,null,null,null,null,null,null,null,null,null,null,null,null,null,null,"個人番号\n又は法人番号",null,null,null,null,null,null,null,null,null,null,null,null,null,null,null,null,null,null,null,null,null,null,null,null,null,null,null,null,null,null,null,null,null,null,null,null,null,null,null,null,null,null,null,null,null,null,null,null,null,null,null,null,null,null,null,null,null," ←個人番号の記載に当たっては、\n左端を空欄とし右詰めで記載"]
[null,null,null,null,null,null,null,null,null,null,null,null,null,null,null,null,null,null,null,null,null,null,null,null,null,null,null,null,null,null,null,null,null,null,null,null,null,null,null,null,null,null,null,null,null,null,null,null,null,null,null,null,null,null,null,null,null,null,null,null,null,null,null,null,null,null,null,null,null,null,null,null,null,null,null,null,null,null,null,null,null,null,null,null,null,null,null,null,null,null,null,null,null,null,null,null,null,null,null,null,null,null,null,null,null,null,null,null,null,null,null,null,null,null,null,null,null,null,null,null,null,null,null,null,null,null,null,"電 話",null,null,null,null,null,null,null,null,null,null,null,null,null,null,null,null,null,null,null,null,null,null,null,null,null,null,null,"内線(　　　　　　)"]
[]
[]
[null,null,"給　与　所　得　者",null,null,"フリガナ",null,null,null,null,null,null,null,null,null,{"$f":"IF(IFERROR(VLOOKUP($FQ$32,入力リスト!A:AR,3,FALSE),0)=0,\"\",VLOOKUP($FQ$32,入力リスト!A:AR,3,FALSE))","v":""},null,null,null,null,null,null,null,null,null,null,null,null,null,null,null,null,null,null,null,null,null,null,null,null,null,null,null,null,null,null,null,null,null,null,null,"（ア）",null,null,null,null,null,null,null,null,null,null,null,null,null,null,null,"（イ）",null,null,null,null,null,null,null,null,null,null,null,null,null,null,"（ウ）",null,null,null,null,null,null,null,null,null,null,null,null,null,null,"異  　動\n年 月 日",null,null,null,null,null,null,null,null,null,null,null,null,"異　動　の　事　由",null,null,null,null,null,null,null,null,null,null,null,null,null,null,null,null,null,null,null,null,null,null,null,null,null,null,null,null,null,"異動後の未徴収"]
[]
[]
[null,null,null,null,null,"氏　名",null,null,null,null,null,null,null,null,null,{"$f":"IF(IFERROR(VLOOKUP($FQ$32,入力リスト!A:AR,2,FALSE),0)=0,\"\",VLOOKUP($FQ$32,入力リスト!A:AR,2,FALSE))","v":""},null,null,null,null,null,null,null,null,null,null,null,null,null,null,null,null,null,null,null,null,null,null,null,null,null,null,null,null,null,null,null,null,null,null,null,null,null,null,null,null,null,null,null,null,null,null,null,null,null,null,null,null,null,null,null,null,null,null,null,null,null,null,null,null,null,null,null,null,null,null,null,null,null,null,null,null,null,null,null,null,null,null,null,null,null,null,null,null,null,null,null,null,null,null,null,null,null,null,null,null,null,null,null,null,null,null,null,null,null,null,null,null,null,null,null,null,null,null,null,null,null,null,null,null,"税額の徴収方法"]
[null,null,null,null,null,null,null,null,null,null,null,null,null,null,null,null,null,null,null,null,null,null,null,null,null,null,null,null,null,null,null,null,null,null,null,null,null,null,null,null,null,null,null,null,null,null,null,null,null,null,null,"特別徴収税額\n（年税額）",null,null,null,null,null,null,null,null,null,null,null,null,null,null,null,"徴収済額",null,null,null,null,null,null,null,null,null,null,null,null,null,null,"未徴収税額\n（ア）－（イ）"]
[]
[null,null,null,null,null,null,null,null,null,null,null,null,null,null,null,null,null,null,null,null,null,null,null,null,null,null,null,null,null,null,null,null,null,null,null,null,null,null,null,null,null,null,null,null,null,null,null,null,null,null,null,null,null,null,null,null,null,null,null,null,null,null,null,null,null,null,null,null,null,null,null,null,null,null,null,null,null,null,null,null,null,null,null,null,null,null,null,null,null,null,null,null,null,null,null,null,null,null,null,null,null,null,null,null,null,null,null,null,null,null,null,null,null,null,null,null,null,"１．\n２．\n３．\n４．\n５．\n６．\n７．\n８．",null,null,null,"退職\n転勤\n休職・長欠\n死亡\n支払少額・不定期\n合併・解散\n事業所変更\nその他"]
[null,null,null,null,null,null,null,null,null,null,null,null,null,null,null,null,null,null,null,null,null,null,null,null,null,null,null,null,null,null,null,null,null,null,null,null,null,null,null,null,null,null,null,null,null,null,null,null,null,null,null,null,null,null,null,null,null,null,null,null,null,null,null,null,null,null,null,null,null,null,null,null,null,null,null,null,null,null,null,null,null,null,null,null,null,null,null,null,null,null,null,null,null,null,null,null,null,null,null,null,null,null,null,null,null,null,null,null,null,null,null,null,null,null,null,null,null,null,null,null,null,null,null,null,null,null,null,null,null,null,null,null,null,null,null,null,null,null,null,null,null,null,null,null,null,null,null,"１．",null,null,null,"特別徴収継続"]
[null,null,null,null,null,null,null,null,null,null,null,null,null,null,null,null,null,null,null,null,null,null,null,null,null,null,null,null,null,null,null,null,null,null,null,null,null,null,null,null,null,null,null,null,null,null,null,null,null,null,null,null,null,null,null,null,null,null,null,null,null,null,null,null,null,null,null,null,null,null,null,null,null,null,null,null,null,null,null,null,null,null,null,null,null,null,null,null,null,null,null,null,null,null,null,null,null,null,null,null,null,null,null,null,null,null,null,null,null,null,null,{"$f":"IF(IFERROR(VLOOKUP($FQ$32,入力リスト!A:AR,19,FALSE),0)=0,\"\",VLOOKUP($FQ$32,入力リスト!A:AR,19,FALSE))","v":""},null,null,null,null,null,null,null,null,null,null,null,null,null,null,null,null,null,null,null,null,null,null,null,null,null,null,null,null,null,{"$f":"IF(IFERROR(VLOOKUP($FQ$32,入力リスト!A:AR,21,FALSE),0)=0,\"\",VLOOKUP($FQ$32,入力リスト!A:AR,21,FALSE))","v":""},null,null,null,null,null,null,null,null,null,null,null,null,null,null,null,null,null,null,null,null,null,null,null,null,null,null,null,null,null,null,1]
[null,null,null,null,null,"生年月日",null,null,null,null,null,null,null,null,null,{"$f":"IF(IFERROR(VLOOKUP($FQ$32,入力リスト!A:AR,4,FALSE),0)=0,\"\",VLOOKUP($FQ$32,入力リスト!A:AR,4,FALSE))","v":""}]
[null,null,null,null,null,null,null,null,null,null,null,null,null,null,null,null,null,null,null,null,null,null,null,null,null,null,null,null,null,null,null,null,null,null,null,null,null,null,null,null,null,null,null,null,null,null,null,null,null,null,null,null,null,null,null,null,null,null,null,null,null,null,null,null,null,null,null,null,{"$f":"IF(IFERROR(VLOOKUP($FQ$32,入力リスト!A:AR,10,FALSE),0)=0,\"\",VLOOKUP($FQ$32,入力リスト!A:AR,10,FALSE))","v":""},null,null,null,null,null,null,"月から",null,null,null,null,null,null,null,{"$f":"IF(IFERROR(VLOOKUP($FQ$32,入力リスト!A:AR,13,FALSE),0)=0,\"\",VLOOKUP($FQ$32,入力リスト!A:AR,13,FALSE))","v":""},null,null,null,null,null,null,"月から",null,null,null,null,null,null,null,{"$f":"IF(IFERROR(VLOOKUP($FQ$32,入力リスト!A:AR,16,FALSE),0)=0,\"\",VLOOKUP($FQ$32,入力リスト!A:AR,16,FALSE))","v":""},null,null,null,null,null,null,null,"年",null,null,null,null,null,null,null,null,null,null,null,null,null,null,null,null,null,null,null,null,null,null,null,null,null,null,null,null,null,null,null,null,null,null,null,null,null,null,null,null,"→①欄に記入してください"]
[]
[null,null,null,null,null,"個人番号",null,null,null,null,null,null,null,null,null,{"$f":"TEXT(IF(IFERROR(VLOOKUP($FQ$32,入力リスト!A:AR,5,FALSE),0)=0,\"\",VLOOKUP($FQ$32,入力リスト!A:AR,5,FALSE)),\"0000  0000  0000\")","v":""}]
[null,null,null,null,null,null,null,null,null,null,null,null,null,null,null,null,null,null,null,null,null,null,null,null,null,null,null,null,null,null,null,null,null,null,null,null,null,null,null,null,null,null,null,null,null,null,null,null,null,null,null,null,null,null,null,null,null,null,null,null,null,null,null,null,null,null,null,null,null,null,null,null,null,null,null,null,null,null,null,null,null,null,null,null,null,null,null,null,null,null,null,null,null,null,null,null,null,null,null,null,null,null,null,null,null,null,null,null,null,null,"右から\n番号を\n記入",null,null,null,null,null,null,null,null,null,null,null,null,null,null,null,null,null,null,null,null,null,null,null,null,null,null,null,null,null,"右から\n番号を\n記入",null,null,null,null,null,null,"２．",null,null,null,"一括徴収"]
[]
[null,null,null,null,null,"受給者番号",null,null,null,null,null,null,null,null,null,{"$f":"IF(IFERROR(VLOOKUP($FQ$32,入力リスト!A:AR,6,FALSE),0)=0,\"\",VLOOKUP($FQ$32,入力リスト!A:AR,6,FALSE))","v":""}]
[null,null,null,null,null,null,null,null,null,null,null,null,null,null,null,null,null,null,null,null,null,null,null,null,null,null,null,null,null,null,null,null,null,null,null,null,null,null,null,null,null,null,null,null,null,null,null,null,null,null,null,{"$f":"IF(IFERROR(VLOOKUP($FQ$32,入力リスト!A:AR,9,FALSE),0)=0,\"\",VLOOKUP($FQ$32,入力リスト!A:AR,9,FALSE))","v":""},null,null,null,null,null,null,null,null,null,null,null,null,null,null,null,null,{"$f":"IF(IFERROR(VLOOKUP($FQ$32,入力リスト!A:AR,11,FALSE),0)=0,\"\",VLOOKUP($FQ$32,入力リスト!A:AR,11,FALSE))","v":""},null,null,null,null,null,null,"月まで",null,null,null,null,null,null,null,{"$f":"IF(IFERROR(VLOOKUP($FQ$32,入力リスト!A:AR,14,FALSE),0)=0,\"\",VLOOKUP($FQ$32,入力リスト!A:AR,14,FALSE))","v":""},null,null,null,null,null,null,"月まで",null,null,null,null,null,null,null,{"$f":"IF(IFERROR(VLOOKUP($FQ$32,入力リスト!A:AR,17,FALSE),0)=0,\"\",VLOOKUP($FQ$32,入力リスト!A:AR,17,FALSE))","v":""},null,null,null,null,null,null,null,"月",null,null,null,null,null,null,null,null,null,null,null,null,null,null,null,null,null,null,null,null,null,null,null,null,null,null,null,null,null,null,null,null,null,null,null,null,null,null,null,null,"→②欄に記入してください",null,null,null,null,null,null,null,null,null,null,null,null,null,null,null,null,null,null,null,null,null,null,null,null,"～"]
[]
[null,null,null,null,null,"１月１日\n現在の住所",null,null,null,null,null,null,null,null,null,{"$f":"IF(IFERROR(VLOOKUP($FQ$32,入力リスト!A:AR,7,FALSE),0)=0,\"\",VLOOKUP($FQ$32,入力リスト!A:AR,7,FALSE))","v":""}]
[null,null,null,null,null,null,null,null,null,null,null,null,null,null,null,null,null,null,null,null,null,null,null,null,null,null,null,null,null,null,null,null,null,null,null,null,null,null,null,null,null,null,null,null,null,null,null,null,null,null,null,null,null,null,null,null,null,null,null,null,null,null,null,null,null,null,null,null,null,null,null,null,null,null,null,null,null,null,null,null,null,null,null,null,null,null,null,null,null,null,null,null,null,null,null,null,null,null,null,null,null,null,null,null,null,null,null,null,null,null,null,null,null,null,null,null,null,null,null,null,null,null,null,null,null,null,null,null,null,null,null,null,null,null,null,null,null,null,null,null,null,null,null,null,null,null,null,"３．",null,null,null,"普通徴収"]
[]
[null,null,null,null,null,null,null,null,null,null,null,null,null,null,null,null,null,null,null,null,null,null,null,null,null,null,null,null,null,null,null,null,null,null,null,null,null,null,null,null,null,null,null,null,null,null,null,null,null,null,null,null,null,null,null,null,null,null,null,null,null,null,null,null,null,null,null,null,null,null,null,null,null,null,null,null,null,null,null,null,null,null,null,null,null,null,null,null,null,null,null,null,null,null,null,null,null,null,null,null,null,null,null,null,null,null,null,null,null,null,null,null,null,null,null,null,null,null,null,null,null,null,null,null,null,null,null,null,null,null,null,null,null,null,null,null,null,null,null,null,null,null,null,null,null,null,null,null,null,null,null,null,null,null,null,null,null,null,null,null,null,null,null,null,null,null,null,null,null,null,null,null,1]
[null,null,null,null,null,null,null,null,null,null,null,null,null,null,null,null,null,null,null,null,null,null,null,null,null,null,null,null,null,null,null,null,null,null,null,null,null,null,null,null,null,null,null,null,null,null,null,null,null,null,null,null,null,null,null,null,null,null,null,null,null,null,null,null,null,null,null,{"$f":"IF(IFERROR(VLOOKUP($FQ$32,入力リスト!A:AR,11,FALSE),0)=0,\"\",IF(IFERROR(VLOOKUP($FQ$32,入力リスト!A:AR,12,FALSE),0)=0,AZ40-CE46,VLOOKUP($FQ$32,入力リスト!A:AR,12,FALSE)))","v":""},null,null,null,null,null,null,null,null,null,null,null,null,null,null,{"$f":"IF(IFERROR(VLOOKUP(FQ32,入力リスト!A:AR,13,FALSE),0)=0,\"\",IF(IFERROR(VLOOKUP(FQ32,入力リスト!A:AR,15,FALSE),0)=0,ROUNDDOWN((VLOOKUP(FQ32,入力リスト!A:AR,9,FALSE)/12),-2)*((VLOOKUP(VLOOKUP(FQ32,入力リスト!A:AR,14,FALSE),入力リスト!BM11:BN22,2,FALSE)-VLOOKUP(VLOOKUP(FQ32,入力リスト!A:AR,13,FALSE),入力リスト!BM11:BN22,2,FALSE))+1),VLOOKUP(FQ32,入力リスト!A:AR,15,FALSE)))","v":""},null,null,null,null,null,null,null,null,null,null,null,null,null,null,null,{"$f":"IF(IFERROR(VLOOKUP($FQ$32,入力リスト!A:AR,18,FALSE),0)=0,\"\",VLOOKUP($FQ$32,入力リスト!A:AR,18,FALSE))","v":""},null,null,null,null,null,null,null,"日",null,null,null,null,null,null,null,null,null,null,null,null,null,null,null,null,null,null,null,null,null,null,null,null,null,null,null,null,null,null,null,null,null,null,null,null,null,null,null,null,null,null,null,null,"（本人納付）"]
[null,null,null,null,null,"異動後の\n住 所",null,null,null,null,null,null,null,null,null,{"$f":"IF(IFERROR(VLOOKUP($FQ$32,入力リスト!A:AR,8,FALSE),0)=0,\"\",VLOOKUP($FQ$32,入力リスト!A:AR,8,FALSE))","v":""}]
[]
[null,null,null,null,null,null,null,null,null,null,null,null,null,null,null,null,null,null,null,null,null,null,null,null,null,null,null,null,null,null,null,null,null,null,null,null,null,null,null,null,null,null,null,null,null,null,null,null,null,null,null,null,null,null,null,null,null,null,null,null,null,null,null,null,"円",null,null,null,null,null,null,null,null,null,null,null,null,null,null,"円",null,null,null,null,null,null,null,null,null,null,null,null,null,null,"円",null,null,null,null,null,null,null,null,null,null,null,null,null,null,null,null,null,null,null,null,null,null,{"$f":"IF(IFERROR(VLOOKUP($FQ$32,入力リスト!A:AR,20,FALSE),0)=0,\"\",VLOOKUP($FQ$32,入力リスト!A:AR,20,FALSE))","v":""},null,null,null,null,null,null,null,null,null,null,null,null,null,null,null,null,null,null,null,null,null,null,null,null,null,null,null,null,null,"→③欄に記入してください"]
[]
[]
[]
[null,null,"①特別徴収継続の場合"]
[]
[null,null,"（特別徴収義務者）\n新しい勤務先",null,null,null,null,"特別徴収義務者\n指　定　番　号",null,null,null,null,null,null,null,null,null,null,null,null,null,null,null,{"$f":"IF(IFERROR(VLOOKUP($FQ$32,入力リスト!A:AR,30,FALSE),0)=0,\"\",VLOOKUP($FQ$32,入力リスト!A:AR,30,FALSE))","v":""},null,null,null,null,null,null,null,null,null,null,null,null,null,null,null,null,null,null,null,null,null,null,null,null,null,null,null,null,null,null,null,"新規",null,null,null,null,null,null,null,null,null,"個人番号\n又は法人番号",null,null,null,null,null,null,null,null,null,null,null,null,null,{"$f":"TEXT(IF(IFERROR(VLOOKUP($FQ$32,入力リスト!A:AR,32,FALSE),0)=0,\"\",VLOOKUP($FQ$32,入力リスト!A:AR,32,FALSE)),\"0  0000  0000  0000\")","v":""},null,null,null,null,null,null,null,null,null,null,null,null,null,null,null,null,null,null,null,null,null,null,null,null,null,null,null,null,null,null,null,null,null,null,null,null,null,null,null,null,null,"新しい勤務先へは、月割額  ",null,null,null,null,null,null,null,null,null,null,null,null,null,null,null,null,null,null,null,null,null,{"$f":"IF(IFERROR(VLOOKUP($FQ$32,入力リスト!A:AQ,33,FALSE),0)=0,\"\",VLOOKUP($FQ$32,入力リスト!A:AQ,33,FALSE))","v":""},null,null,null,null,null,null,null,null,null,null,null,null,null,"円を"]
[]
[]
[null,null,null,null,null,null,null,"所　在　地",null,null,null,null,null,null,null,null,null,null,null,null,null,null,null,"〒",null,null,{"$f":"IF(IFERROR(VLOOKUP($FQ$32,入力リスト!A:AR,28,FALSE),0)=0,\"\",VLOOKUP($FQ$32,入力リスト!A:AR,28,FALSE))","v":""},null,null,null,null,null,null,null,null,null,null,null,null,null,null,null,null,null,null,null,null,null,null,null,null,null,null,null,null,null,null,null,null,null,null,null,null,null,null,null,null,null,null,null,null,null,null,null,null,null,null,"担当者連絡先",null,null,"所属",null,null,null,null,null,null,{"$f":"IF(IFERROR(VLOOKUP($FQ$32,入力リスト!A:AQ,25,FALSE),0)=0,\"\",VLOOKUP($FQ$32,入力リスト!A:AQ,25,FALSE))","v":""},null,null,null,null,null,null,null,null,null,null,null,null,null,null,null,null,null,null,null,null,null,null,null,null,null,null,null,null,null,null,null,null,null,{"$f":"IF(IFERROR(VLOOKUP($FQ$32,入力リスト!A:AQ,34,FALSE),0)=0,\"\",VLOOKUP($FQ$32,入力リスト!A:AQ,34,FALSE))","v":""},null,null,null,null,null,"月分（翌月10日納入期限分）から"]
[]
[null,null,null,null,null,null,null,null,null,null,null,null,null,null,null,null,null,null,null,null,null,null,null,{"$f":"IF(IFERROR(VLOOKUP($FQ$32,入力リスト!A:AR,29,FALSE),0)=0,\"\",VLOOKUP($FQ$32,入力リスト!A:AR,29,FALSE))","v":""}]
[null,null,null,null,null,null,null,null,null,null,null,null,null,null,null,null,null,null,null,null,null,null,null,null,null,null,null,null,null,null,null,null,null,null,null,null,null,null,null,null,null,null,null,null,null,null,null,null,null,null,null,null,null,null,null,null,null,null,null,null,null,null,null,null,null,null,null,null,null,null,null,null,null,null,null,null,null,null,null,null,null,null,null,null,null,null,null,null,null,null,null,null,null,null,null,null,null,null,null,null,null,null,null,null,null,null,null,null,null,null,null,null,null,null,null,null,null,null,null,null,null,"徴収し、納入するよう連絡済みです。"]
[null,null,null,null,null,null,null,null,null,null,null,null,null,null,null,null,null,null,null,null,null,null,null,null,null,null,null,null,null,null,null,null,null,null,null,null,null,null,null,null,null,null,null,null,null,null,null,null,null,null,null,null,null,null,null,null,null,null,null,null,null,null,null,null,null,null,null,null,null,null,null,null,null,null,null,null,null,null,null,null,"フリガナ",null,null,null,null,null,null,{"$f":"IF(IFERROR(VLOOKUP($FQ$32,入力リスト!A:AQ,27,FALSE),0)=0,\"\",VLOOKUP($FQ$32,入力リスト!A:AQ,27,FALSE))","v":""}]
[]
[null,null,null,null,null,null,null,"フリガナ",null,null,null,null,null,null,null,null,null,null,null,null,null,null,null,{"$f":"IF(IFERROR(VLOOKUP($FQ$32,入力リスト!A:AR,23,FALSE),0)=0,\"\",VLOOKUP($FQ$32,入力リスト!A:AR,23,FALSE))","v":""},null,null,null,null,null,null,null,null,null,null,null,null,null,null,null,null,null,null,null,null,null,null,null,null,null,null,null,null,null,null,null,null,null,null,null,null,null,null,null,null,null,null,null,null,null,null,null,null,null,null,null,null,null,null,null,null,"氏名",null,null,null,null,null,null,{"$f":"IF(IFERROR(VLOOKUP($FQ$32,入力リスト!A:AQ,26,FALSE),0)=0,\"\",VLOOKUP($FQ$32,入力リスト!A:AQ,26,FALSE))","v":""},null,null,null,null,null,null,null,null,null,null,null,null,null,null,null,null,null,null,null,null,null,null,null,null,null,null,null,null,null,null,"受給者番号",null,null,null,null,null,null,null,null,null,null,null,null,null,null,null,null,{"$f":"IF(IFERROR(VLOOKUP($FQ$32,入力リスト!A:AQ,31,FALSE),0)=0,\"\",VLOOKUP($FQ$32,入力リスト!A:AQ,31,FALSE))","v":""}]
[]
[null,null,null,null,null,null,null,"氏名又は名称",null,null,null,null,null,null,null,null,null,null,null,null,null,null,null,{"$f":"IF(IFERROR(VLOOKUP($FQ$32,入力リスト!A:AR,22,FALSE),0)=0,\"\",VLOOKUP($FQ$32,入力リスト!A:AR,22,FALSE))","v":""}]
[null,null,null,null,null,null,null,null,null,null,null,null,null,null,null,null,null,null,null,null,null,null,null,null,null,null,null,null,null,null,null,null,null,null,null,null,null,null,null,null,null,null,null,null,null,null,null,null,null,null,null,null,null,null,null,null,null,null,null,null,null,null,null,null,null,null,null,null,null,null,null,null,null,null,null,null,null,null,null,null,null,null,null,null,null,null,null,null,null,null,null,null,null,null,null,null,null,null,null,null,null,null,null,null,null,null,null,null,null,null,null,null,null,null,null,null,null,null,"納入書の要否\n（新規の場合のみ記載）",null,null,null,null,null,null,null,null,null,null,null,null,null,null,null,null,null,null,null,null,null,null,null,null,null,null,null,"１．必要　　２．不要 "]
[null,null,null,null,null,null,null,null,null,null,null,null,null,null,null,null,null,null,null,null,null,null,null,null,null,null,null,null,null,null,null,null,null,null,null,null,null,null,null,null,null,null,null,null,null,null,null,null,null,null,null,null,null,null,null,null,null,null,null,null,null,null,null,null,null,null,null,null,null,null,null,null,null,null,null,null,null,null,null,null,"電話",null,null,null,null,null,null,{"$f":"IF(IFERROR(VLOOKUP($FQ$32,入力リスト!A:AQ,24,FALSE),0)=0,\"\",VLOOKUP($FQ$32,入力リスト!A:AQ,24,FALSE))","v":""},null,null,null,null,null,null,null,null,null,null,null,null,null,null,null,null,null,null,null,"内線(　　　　　)",null,null,null,null,null,null,null,null,null,null,null,null,null,null,null,null,null,null,null,null,null,null,null,null,null,null,null,null,{"$f":"IF(IFERROR(VLOOKUP($FQ$32,入力リスト!A:AQ,35,FALSE),0)=0,\"\",VLOOKUP($FQ$32,入力リスト!A:AQ,35,FALSE))","v":""}]
[]
[]
[]
[]
[null,null,"②一括徴収の場合"]
[]
[null,null,"理　由",null,null,null,null,null,null,null,null,"１．異動が令和",null,null,null,null,null,null,null,null,null,null,null,{"$f":"IF(IFERROR(VLOOKUP($FQ$32,入力リスト!A:AQ,37,FALSE),0)=0,\"\",IF(VLOOKUP($FQ$32,入力リスト!A:AQ,36,FALSE)=1,VLOOKUP($FQ$32,入力リスト!A:AQ,37,FALSE),\"\"))","v":""},null,null,null,"年12月31日までで、一括徴収の申出があったため",null,null,null,null,null,null,null,null,null,null,null,null,null,null,null,null,null,null,null,null,null,null,null,null,null,null,null,null,null,null,null,null,null,null,null,null,null,null,null,null,null,null,null,null,null,null,null,null,null,null,null,"徴収予定月日",null,null,null,null,null,null,null,null,null,null,null,null,null,null,null,null,null,null,null,"徴収予定額\n（上記（ウ）と同額）",null,null,null,null,null,null,null,null,null,null,null,null,null,null,null,null,null,null,null,null,null,null,null,null,null,null,null,null,null,"左記の一括徴収した税額は、"]
[null,null,null,null,null,{"$f":"IF(IFERROR(VLOOKUP($FQ$32,入力リスト!A:AQ,36,FALSE),0)=0,\"\",VLOOKUP($FQ$32,入力リスト!A:AQ,36,FALSE))","v":""}]
[]
[null,null,null,null,null,null,null,null,null,null,null,null,null,null,null,null,null,null,null,null,null,null,null,null,null,null,null,null,null,null,null,null,null,null,null,null,null,null,null,null,null,null,null,null,null,null,null,null,null,null,null,null,null,null,null,null,null,null,null,null,null,null,null,null,null,null,null,null,null,null,null,null,null,null,null,null,null,null,null,null,null,null,null,null,null,null,null,null,null,null,null,null,null,null,null,null,null,null,null,null,null,null,null,null,null,null,null,null,null,null,null,null,null,null,null,null,null,null,null,null,null,null,null,null,null,null,null,null,null,{"$f":"IF(IFERROR(VLOOKUP($FQ$32,入力リスト!A:AQ,40,FALSE),0)=0,\"\",VLOOKUP($FQ$32,入力リスト!A:AQ,40,FALSE))","v":""},null,null,null,null,null,"月分（翌月10日納入期限分）で"]
[null,null,null,null,null,null,null,null,null,null,null,"２．異動が令和\n",null,null,null,null,null,null,null,null,null,null,null,{"$f":"IF(IFERROR(VLOOKUP($FQ$32,入力リスト!A:AQ,37,FALSE),0)=0,\"\",IF(VLOOKUP($FQ$32,入力リスト!A:AQ,36,FALSE)=2,VLOOKUP($FQ$32,入力リスト!A:AQ,37,FALSE),\"\"))","v":""},null,null,null,"年１月１日以降で、特別徴収の継続の申出がないため\n　　※１月１日以降に退職される場合は、一括徴収してください。",null,null,null,null,null,null,null,null,null,null,null,null,null,null,null,null,null,null,null,null,null,null,null,null,null,null,null,null,null,null,null,null,null,null,null,null,null,null,null,null,null,null,null,null,null,null,null,null,null,null,null,null,{"$f":"IF(IFERROR(VLOOKUP($FQ$32,入力リスト!A:AQ,38,FALSE),0)=0,\"\",VLOOKUP($FQ$32,入力リスト!A:AQ,38,FALSE))","v":""},null,null,null,null,null,null,null,null,null,null,null,null,null,null,null,null,null,null,null,null,{"$f":"IF(IFERROR(VLOOKUP($FQ$32,入力リスト!A:AQ,39,FALSE),0)=0,\"\",VLOOKUP($FQ$32,入力リスト!A:AQ,39,FALSE))","v":""}]
[]
[null,null,null,null,null,null,null,null,null,null,null,null,null,null,null,null,null,null,null,null,null,null,null,null,null,null,null,null,null,null,null,null,null,null,null,null,null,null,null,null,null,null,null,null,null,null,null,null,null,null,null,null,null,null,null,null,null,null,null,null,null,null,null,null,null,null,null,null,null,null,null,null,null,null,null,null,null,null,null,null,null,null,null,null,null,null,null,null,null,null,null,null,null,null,null,null,null,null,null,null,null,null,null,null,null,null,null,null,null,null,null,null,null,null,null,null,null,null,null,null,null,null,null,null,null,null,null,null,null,"納入します。"]
[null,null,null,null,null,null,null,null,null,null,null,null,null,null,null,null,null,null,null,null,null,null,null,null,null,null,null,null,null,null,null,null,null,null,null,null,null,null,null,null,null,null,null,null,null,null,null,null,null,null,null,null,null,null,null,null,null,null,null,null,null,null,null,null,null,null,null,null,null,null,null,null,null,null,null,null,null,null,null,null,null,null,null,null,null,null,null,null,null,null,null,null,null,null,null,null,null,null,null,null,null,null,null,null,null,null,null,null,null,null,null,null,null,null,null,null,null,null,null,null,null,null,"円"]
[]
[]
[null,null,"③普通徴収の場合"]
[null,null,null,null,null,null,null,null,null,null,null,null,null,null,null,null,null,null,null,null,null,null,null,null,null,null,null,null,null,null,null,null,null,null,null,null,null,null,null,null,null,null,null,null,null,null,null,null,null,null,null,null,null,null,null,null,null,null,null,null,null,null,null,null,null,null,null,null,null,null,null,null,null,null,null,null,null,null,null,null,null,null,null,null,null,null,null,null,null,null,null,null,null,null,null,null,null,null,null,null,null,null,null,null,null,null,null,null,"　記入欄\n※市町村",null,null,null,null,null,null,null,null,null,null,null,null,null,null,null,null,null,null,null,null,null,null,null,null,null,null,null,null,null,null,null,"入力",null,null,null,null,null,null,null,null,"確認①",null,null,null,null,null,null,null,null,"確認②"]
[null,null,"理　由",null,null,null,null,null,null,null,null,"１．異動が令和",null,null,null,null,null,null,null,null,null,null,null,{"$f":"IF(IFERROR(VLOOKUP($FQ$32,入力リスト!A:AQ,42,FALSE),0)=0,\"\",IF(VLOOKUP($FQ$32,入力リスト!A:AQ,41,FALSE)=1,VLOOKUP($FQ$32,入力リスト!A:AQ,42,FALSE),\"\"))","v":""},null,null,null,"年12月31日までで、一括徴収の申出がないため　　※１月１日以降に退職される場合は、一括徴収してください。"]
[null,null,null,null,null,{"$f":"IF(IFERROR(VLOOKUP($FQ$32,入力リスト!A:AQ,41,FALSE),0)=0,\"\",VLOOKUP($FQ$32,入力リスト!A:AQ,41,FALSE))","v":""}]
[]
[null,null,null,null,null,null,null,null,null,null,null,"２．令和",null,null,null,null,null,null,{"$f":"IF(IFERROR(VLOOKUP($FQ$32,入力リスト!A:AQ,42,FALSE),0)=0,\"\",IF(VLOOKUP($FQ$32,入力リスト!A:AQ,41,FALSE)=2,VLOOKUP($FQ$32,入力リスト!A:AQ,42,FALSE),\"\"))","v":""},null,null,null,"年５月31日までに支払われるべき給与又は退職手当等の額が未徴収税額 （ウ） 以下であるため"]
[]
[]
[null,null,null,null,null,null,null,null,null,null,null,"３．死亡による退職であるため"]

{"sheet":"入力リスト","index":6,"n_rows":111,"n_cols":66,"rows_kept":111,"cut":false,"hidden":false,"merged":[[8,42,9,42],[8,43,9,43],[8,35,8,39],[8,40,8,41],[8,0,9,0],[8,18,9,18],[8,19,9,19],[8,20,9,20],[8,1,8,6],[8,9,8,11],[8,12,8,14],[8,15,8,17],[8,21,8,34]]}
[null,"リストデータあり⇒",null,null,null,null,null,null,null,null,null,null,null,null,null,null,null,null,null,null,null,null,null,null,null,null,null,null,null,null,null,null,null,null,"１ 必要",null,null,null,null,null,null,null,null,"１ 現年度"]
[null,null,null,null,null,null,null,null,null,null,null,null,null,null,null,null,null,null,null,null,null,null,null,null,null,null,null,null,null,null,null,null,null,null,"２ 不要",null,null,null,null,null,null,null,null,"２ 新年度"]
[null,null,null,null,null,null,null,null,null,null,null,null,null,null,null,null,null,null,null,null,null,null,null,null,null,null,null,null,null,null,null,null,null,null,null,null,null,null,null,null,null,null,null,"３ 両年度"]
[]
[]
[]
[]
[null,2,3,4,5,6,7,8,9,10,11,12,13,14,15,16,17,18,null,20,null,24,25,26,27,28,null,29,30,31,32,33,34,35,36,37,38,39,40,41,43,44,45,46]
["No","給与所得者",null,null,null,null,null,null,"（ア）","（イ）",null,null,"（ウ）",null,null,"異動年月日",null,null,"異動の\n事由","異動の事由\n自由記載欄","異動後の未徴収\n税額の徴収方法","①特別徴収の場合",null,null,null,null,null,null,null,null,null,null,null,null,null,"② 一括徴収の場合",null,null,null,null,"③普通徴収の場合",null,"提出日","対象年度"]
[null,"氏名","フリガナ","生年月日","個人番号","受給者番号","1月1日現在の住所","異動後の住所","年税額","月から","月まで","徴収済額","月から","月まで","未徴収税額","年","月","日",null,null,null,"名称","フリガナ","電話番号","担当部署","担当者","フリガナ","郵便番号","所在地","指定番号","受給者番号","法人番号","月割額","開始月","納入書","一括徴収の理由","年","徴収予定月日①","徴収予定額","徴収月","普通徴収の理由","年"]
["例","佐伯　太郎","サイキ　タロウ","1965-01-15",987654321098,"A－001","佐伯市中村南町1番1号","大分市荷揚町123番98号",120000,6,9,40000,10,5,80000,8,9,30,1,null,1,"有限会社　さいき商店","ユウゲンガイシャ　サイキショウテン","090-1234-5678","経理課","直川　次郎","ナオカワ　ジロウ","876-1234","佐伯市中村北町100番99号",80001234,123,2468013579123,10000,10,1,1,7,"2025-10-10",80000,10,1,7,"2026-10-10","１ 現年度",null,null,null,null,null,null,null,null,null,null,null,null,null,null,null,null,null,null,null,null,6,1]
[1,null,null,null,null,null,null,null,null,null,null,null,null,null,null,null,null,null,null,null,null,null,null,null,null,null,null,null,null,null,null,null,null,null,null,null,null,null,null,null,null,null,null,null,null,null,null,null,null,null,null,null,null,null,null,null,null,null,null,null,null,null,null,null,7,2]
[2,null,null,null,null,null,null,null,null,null,null,null,null,null,null,null,null,null,null,null,null,null,null,null,null,null,null,null,null,null,null,null,null,null,null,null,null,null,null,null,null,null,null,null,null,null,null,null,null,null,null,null,null,null,null,null,null,null,null,null,null,null,null,null,8,3]
[3,null,null,null,null,null,null,null,null,null,null,null,null,null,null,null,null,null,null,null,null,null,null,null,null,null,null,null,null,null,null,null,null,null,null,null,null,null,null,null,null,null,null,null,null,null,null,null,null,null,null,null,null,null,null,null,null,null,null,null,null,null,null,null,9,4]
[4,null,null,null,null,null,null,null,null,null,null,null,null,null,null,null,null,null,null,null,null,null,null,null,null,null,null,null,null,null,null,null,null,null,null,null,null,null,null,null,null,null,null,null,null,null,null,null,null,null,null,null,null,null,null,null,null,null,null,null,null,null,null,null,10,5]
[5,null,null,null,null,null,null,null,null,null,null,null,null,null,null,null,null,null,null,null,null,null,null,null,null,null,null,null,null,null,null,null,null,null,null,null,null,null,null,null,null,null,null,null,null,null,null,null,null,null,null,null,null,null,null,null,null,null,null,null,null,null,null,null,11,6]
[6,null,null,null,null,null,null,null,null,null,null,null,null,null,null,null,null,null,null,null,null,null,null,null,null,null,null,null,null,null,null,null,null,null,null,null,null,null,null,null,null,null,null,null,null,null,null,null,null,null,null,null,null,null,null,null,null,null,null,null,null,null,null,null,12,7]
[7,null,null,null,null,null,null,null,null,null,null,null,null,null,null,null,null,null,null,null,null,null,null,null,null,null,null,null,null,null,null,null,null,null,null,null,null,null,null,null,null,null,null,null,null,null,null,null,null,null,null,null,null,null,null,null,null,null,null,null,null,null,null,null,1,8]
[8,null,null,null,null,null,null,null,null,null,null,null,null,null,null,null,null,null,null,null,null,null,null,null,null,null,null,null,null,null,null,null,null,null,null,null,null,null,null,null,null,null,null,null,null,null,null,null,null,null,null,null,null,null,null,null,null,null,null,null,null,null,null,null,2,9]
[9,null,null,null,null,null,null,null,null,null,null,null,null,null,null,null,null,null,null,null,null,null,null,null,null,null,null,null,null,null,null,null,null,null,null,null,null,null,null,null,null,null,null,null,null,null,null,null,null,null,null,null,null,null,null,null,null,null,null,null,null,null,null,null,3,10]
[10,null,null,null,null,null,null,null,null,null,null,null,null,null,null,null,null,null,null,null,null,null,null,null,null,null,null,null,null,null,null,null,null,null,null,null,null,null,null,null,null,null,null,null,null,null,null,null,null,null,null,null,null,null,null,null,null,null,null,null,null,null,null,null,4,11]
[11,null,null,null,null,null,null,null,null,null,null,null,null,null,null,null,null,null,null,null,null,null,null,null,null,null,null,null,null,null,null,null,null,null,null,null,null,null,null,null,null,null,null,null,null,null,null,null,null,null,null,null,null,null,null,null,null,null,null,null,null,null,null,null,5,12]
[12]
[13]
[14]
[15]
[16]
[17]
[18]
[19]
[20]
[21]
[22]
[23]
[24]
[25]
[26]
[27]
[28]
[29]
[30]
[31]
[32]
[33]
[34]
[35]
[36]
[37]
[38]
[39]
[40]
[41]
[42]
[43]
[44]
[45]
[46]
[47]
[48]
[49]
[50]
[51]
[52]
[53]
[54]
[55]
[56]
[57]
[58]
[59]
[60]
[61]
[62]
[63]
[64]
[65]
[66]
[67]
[68]
[69]
[70]
[71]
[72]
[73]
[74]
[75]
[76]
[77]
[78]
[79]
[80]
[81]
[82]
[83]
[84]
[85]
[86]
[87]
[88]
[89]
[90]
[91]
[92]
[93]
[94]
[95]
[96]
[97]
[98]
[99]
[100]